Workbook

Sheet Sheet1
A1: Instructions
A2: Forecast the segmental revenue model in the "Segmental forecast" sheet in accordance to the example provided with all the calculations
A3: Note that the revenue growth is the add up of Organic growth + Currency impact
A4: Please ensure all the forecast numbers are equal to the 2022 numbers, using 0% as the forecasted growth and same margins as 2022
A5: This exercise will ensure that all the links in the model are error free and no line item has been missed
A6: Submission time is 3 days from the day the task was given to you

Sheet Historicals
A1: NIKE, INC. (Dollars and Shares in Millions Except Per Share Amounts) | B1: =+C1-1 -> 2015 | C1: 2016 | D1: 2017 | E1: 2018 | F1: 2019 | G1: 2020 | H1: =+I1-1 -> 2021 | I1: 2022
A2: Revenues | B2: 30601 | C2: 32376 | D2: 34350 | E2: 36397 | F2: 39117 | G2: 37403 | H2: 44538 | I2: 46710
A3: Cost of sales | B3: 16534 | C3: 17405 | D3: 19038 | E3: 20441 | F3: 21643 | G3: 21162 | H3: 24576 | I3: 25231
A4: Gross profit | B4: =+B2-B3 -> 14067 | C4: 14971 | D4: 15312 | E4: 15956 | F4: 17474 | G4: 16241 | H4: 19962 | I4: =+I2-I3 -> 21479
A5: Demand creation expense | B5: 3213 | C5: 3278 | D5: 3341 | E5: 3577 | F5: 3753 | G5: 3592 | H5: 3114 | I5: 3850
A6: Operating overhead expense | B6: 6679 | C6: 7191 | D6: 7222 | E6: 7934 | F6: 8949 | G6: 9534 | H6: 9911 | I6: 10954
A7: Total selling and administrative expense | B7: =+B5+B6 -> 9892 | C7: 10469 | D7: 10563 | E7: 11511 | F7: 12702 | G7: 13126 | H7: 13025 | I7: =+I5+I6 -> 14804
A8: Interest expense (income), net | B8: 28 | C8: 19 | D8: 59 | E8: 54 | F8: 49 | G8: 89 | H8: 262 | I8: 205
A9: Other (income) expense, net | B9: -58 | C9: -140 | D9: -196 | E9: 66 | F9: -78 | G9: 139 | H9: 14 | I9: -181
A10: Income before income taxes | B10: =+B4-B7-B8-B9 -> 4205 | C10: 4623 | D10: 4886 | E10: 4325 | F10: 4801 | G10: 2887 | H10: 6661 | I10: =+I4-I7-I8-I9 -> 6651
A11: Income tax expense | B11: 932 | C11: 863 | D11: 646 | E11: 2392 | F11: 772 | G11: 348 | H11: 934 | I11: 605
A12: NET INCOME | B12: =+B10-B11 -> 3273 | C12: 3760 | D12: 4240 | E12: 1933 | F12: 4029 | G12: 2539 | H12: 5727 | I12: =+I10-I11 -> 6046
A13: Net earnings per share:
A14: Basic | B14: 1.9 | C14: 2.21 | D14: 2.56 | E14: 1.19 | F14: 1.63 | G14: 3.64 | H14: 3.64 | I14: 3.83
A15: Diluted | B15: 1.85 | C15: 2.16 | D15: 2.51 | E15: 1.17 | F15: 1.6 | G15: 3.56 | H15: 3.56 | I15: 3.75
A16: Average shares outstanding:
A17: Basic | B17: 0 | C17: 0 | D17: 1657.8 | E17: 1579.7 | F17: 1579.7 | G17: 1559 | H17: 1573 | I17: 1578.8
A18: Diluted | B18: 0 | C18: 0 | D18: 1692 | E18: 1618.4 | F18: 1618.4 | G18: 1592 | H18: 1609.4 | I18: 1610.8
A20: Check (Reported diluted EPS-(Net income/diluted no. of shares) | B20: 0 | C20: 0 | D20: =+ROUND(((D12/D18)-D15),2) -> 0 | E20: 0 | F20: 0 | G20: 0 | H20: 0 | I20: =+ROUND(((I12/I18)-I15),2) -> 0
A22: CONSOLIDATED BALANCE SHEETS
A23: ASSETS
A24: Current assets:
A25: Cash and equivalents | B25: 3852 | C25: 3138 | D25: 3808 | E25: 4249 | F25: 4466 | G25: 8348 | H25: 9889 | I25: 8574
A26: Short-term investments | B26: 2072 | C26: 2319 | D26: 2371 | E26: 996 | F26: 197 | G26: 439 | H26: 3587 | I26: 4423
A27: Accounts receivable, net | B27: 3358 | C27: 3241 | D27: 3677 | E27: 3498 | F27: 4272 | G27: 2749 | H27: 4463 | I27: 4667
A28: Inventories | B28: 4337 | C28: 4838 | D28: 5055 | E28: 5261 | F28: 5622 | G28: 7367 | H28: 6854 | I28: 8420
A29: Prepaid expenses and other current assets | B29: 2357 | C29: 1489 | D29: 1150 | E29: 1130 | F29: 1968 | G29: 1653 | H29: 1498 | I29: 2129
A30: Total current assets | B30: =+SUM(B25:B29) -> 15976 | C30: 15025 | D30: 16061 | E30: 15134 | F30: 16525 | G30: 20556 | H30: 26291 | I30: =+SUM(I25:I29) -> 28213
A31: Property, plant and equipment, net | B31: 3011 | C31: 3520 | D31: 3989 | E31: 4454 | F31: 4744 | G31: 4866 | H31: 4904 | I31: 4791
A32: Operating lease right-of-use assets, net | B32: 0 | C32: 0 | D32: 0 | E32: 0 | F32: 0 | G32: 3097 | H32: 3113 | I32: 2926
A33: Identifiable intangible assets, net | B33: 281 | C33: 281 | D33: 283 | E33: 285 | F33: 283 | G33: 274 | H33: 269 | I33: 286
A34: Goodwill | B34: 131 | C34: 131 | D34: 139 | E34: 154 | F34: 154 | G34: 223 | H34: 242 | I34: 284
A35: Deferred income taxes and other assets | B35: 2201 | C35: 2422 | D35: 2787 | E35: 2509 | F35: 2011 | G35: 2326 | H35: 2921 | I35: 3821
A36: TOTAL ASSETS | B36: =+SUM(B30:B35) -> 21600 | C36: 21379 | D36: 23259 | E36: 22536 | F36: 23717 | G36: 31342 | H36: 37740 | I36: =+SUM(I30:I35) -> 40321
A37: LIABILITIES AND SHAREHOLDERS' EQUITY
A38: Current liabilities:
A39: Current portion of long-term debt | B39: 107 | C39: 44 | D39: 6 | E39: 6 | F39: 6 | G39: 3 | H39: 0 | I39: 500
A40: Notes payable | B40: 74 | C40: 1 | D40: 325 | E40: 336 | F40: 9 | G40: 248 | H40: 2 | I40: 10
A41: Accounts payable | B41: 2131 | C41: 2191 | D41: 2048 | E41: 2279 | F41: 2612 | G41: 2248 | H41: 2836 | I41: 3358
A42: Current portion of operating lease liabilities | B42: 0 | C42: 0 | D42: 0 | E42: 0 | F42: 0 | G42: 445 | H42: 467 | I42: 420
A43: Accrued liabilities | B43: 3951 | C43: 3037 | D43: 3011 | E43: 3269 | F43: 5010 | G43: 5184 | H43: 6063 | I43: 6220
A44: Income taxes payable | B44: 71 | C44: 85 | D44: 84 | E44: 150 | F44: 229 | G44: 156 | H44: 306 | I44: 222
A45: Total current liabilities | B45: =+SUM(B39:B44) -> 6334 | C45: 5358 | D45: 5474 | E45: 6040 | F45: 7866 | G45: 8284 | H45: 9674 | I45: =+SUM(I39:I44) -> 10730
A46: Long-term debt | B46: 1079 | C46: 1993 | D46: 3471 | E46: 3468 | F46: 3464 | G46: 9406 | H46: 9413 | I46: 8920
A47: Operating lease liabilities | B47: 0 | C47: 0 | D47: 0 | E47: 0 | F47: 0 | G47: 2913 | H47: 2931 | I47: 2777
A48: Deferred income taxes and other liabilities | B48: 1480 | C48: 1770 | D48: 1907 | E48: 3216 | F48: 3347 | G48: 2684 | H48: 2955 | I48: 2613
A49: Commitments and contingencies (Note 18)
A50: Redeemable preferred stock | B50: 0 | C50: 0 | D50: 0 | E50: 0 | F50: 0 | G50: 0 | H50: 0 | I50: 0
A51: Shareholders' equity:
A52: Common stock at stated value:
A53: Class A convertible — 305 and 305 shares outstanding
A54: Class B — 1,266 and 1,273 shares outstanding | B54: 3 | C54: 3 | D54: 3 | E54: 3 | F54: 3 | G54: 3 | H54: 3 | I54: 3
A55: Capital in excess of stated value | B55: 6773 | C55: 7786 | D55: 8638 | E55: 6384 | F55: 7163 | G55: 8299 | H55: 9965 | I55: 11484
A56: Accumulated other comprehensive income (loss) | B56: 1246 | C56: 318 | D56: -213 | E56: -92 | F56: 231 | G56: -56 | H56: -380 | I56: 318
A57: Retained earnings (deficit) | B57: 4685 | C57: 4151 | D57: 3979 | E57: 3517 | F57: 1643 | G57: -191 | H57: 3179 | I57: 3476
A58: Total shareholders' equity | B58: =+SUM(B53:B57) -> 12707 | C58: 12258 | D58: 12407 | E58: 9812 | F58: 9040 | G58: 8055 | H58: 12767 | I58: =+SUM(I53:I57) -> 15281
A59: TOTAL LIABILITIES AND SHAREHOLDERS' EQUITY | B59: =+SUM(B45:B50)+B58 -> 21600 | C59: 21379 | D59: 23259 | E59: 22536 | F59: 23717 | G59: 31342 | H59: 37740 | I59: =+SUM(I45:I50)+I58 -> 40321
A60: Check (total assets - total labilities and equity) | B60: =+B59-B36 -> 0 | C60: 0 | D60: 0 | E60: 0 | F60: 0 | G60: 0 | H60: 0 | I60: =+I59-I36 -> 0
A61: CONSOLIDATED STATEMENTS OF CASH FLOWS
A62: (Link Net income figures from income statement)
A63: Cash provided (used) by operations:
A64: Net income | B64: 3273 | C64: 3760 | D64: 4240 | E64: 1933 | F64: 4029 | G64: 2539 | H64: =+H12 -> 5727 | I64: =+I12 -> 6046
A65: Adjustments to reconcile net income to net cash provided (used) by operations:
A66: Depreciation | B66: 606 | C66: 649 | D66: 706 | E66: 747 | F66: 705 | G66: 721 | H66: 744 | I66: 717
A67: Deferred income taxes | B67: -113 | C67: -80 | D67: -273 | E67: 647 | F67: 34 | G67: -380 | H67: -385 | I67: -650
A68: Stock-based compensation | B68: 191 | C68: 236 | D68: 215 | E68: 218 | F68: 325 | G68: 429 | H68: 611 | I68: 638
A69: Amortization, impairment and other | B69: 43 | C69: 13 | D69: 10 | E69: 27 | F69: 15 | G69: 398 | H69: 53 | I69: 123
A70: Net foreign currency adjustments | B70: 424 | C70: 98 | D70: -117 | E70: -99 | F70: 233 | G70: 23 | H70: -138 | I70: -26
A71: Changes in certain working capital components and other assets and liabilities:
A72: (Increase) decrease in accounts receivable | B72: -216 | C72: 60 | D72: -426 | E72: 187 | F72: -270 | G72: 1239 | H72: -1606 | I72: -504
A73: (Increase) decrease in inventories | B73: -621 | C73: -590 | D73: -231 | E73: -255 | F73: -490 | G73: -1854 | H73: 507 | I73: -1676
A74: (Increase) decrease in prepaid expenses, operating lease right-of-use assets and other current and non-current assets | B74: -144 | C74: -161 | D74: -120 | E74: 35 | F74: -203 | G74: -654 | H74: -182 | I74: -845
A75: Increase (decrease) in accounts payable, accrued liabilities, operating lease liabilities and other current and non-current liabilities | B75: 1237 | C75: -889 | D75: -158 | E75: 1515 | F75: 1525 | G75: 24 | H75: 1326 | I75: 1365
A76: Cash provided (used) by operations | B76: =+SUM(B64:B75) -> 4680 | C76: 3096 | D76: 3846 | E76: 4955 | F76: 5903 | G76: 2485 | H76: 6657 | I76: =+SUM(I64:I75) -> 5188
A77: Cash provided (used) by investing activities:
A78: Purchases of short-term investments | B78: -4936 | C78: -5367 | D78: -5928 | E78: -4783 | F78: -2937 | G78: -2426 | H78: -9961 | I78: -12913
A79: Maturities of short-term investments | B79: 3655 | C79: 2924 | D79: 3623 | E79: 3613 | F79: 1715 | G79: 74 | H79: 4236 | I79: 8199
A80: Sales of short-term investments | B80: 2216 | C80: 2386 | D80: 2423 | E80: 2496 | F80: 2072 | G80: 2379 | H80: 2449 | I80: 3967
A81: Additions to property, plant and equipment | B81: -960 | C81: -1133 | D81: -1092 | E81: -1028 | F81: -1119 | G81: -1086 | H81: -695 | I81: -758
A82: Other investing activities | B82: -150 | C82: 156 | D82: -34 | E82: -22 | F82: 5 | G82: 31 | H82: 171 | I82: -19
A83: Cash provided (used) by investing activities | B83: =+SUM(B78:B82) -> -175 | C83: -1034 | D83: -1008 | E83: 276 | F83: -264 | G83: -1028 | H83: -3800 | I83: =+SUM(I78:I82) -> -1524
A84: Cash provided (used) by financing activities:
A85: Proceeds from borrowings, net of debt issuance costs | B85: -7 | C85: 875 | D85: 1438 | E85: 0 | F85: 0 | G85: 6134 | H85: 0 | I85: 0
A86: Increase (decrease) in notes payable, net | B86: -63 | C86: -67 | D86: 327 | E86: 13 | F86: -325 | G86: 49 | H86: -52 | I86: 15
A87: Repayment of borrowings | B87: -19 | C87: -7 | D87: -17 | E87: 0 | F87: 0 | G87: 0 | H87: -197 | I87: 0
A88: Proceeds from exercise of stock options and other stock issuances | B88: 514 | C88: 507 | D88: 489 | E88: 733 | F88: 700 | G88: 885 | H88: 1172 | I88: 1151
A89: Repurchase of common stock | B89: -2534 | C89: -3238 | D89: -3223 | E89: -4254 | F89: -4286 | G89: -3067 | H89: -608 | I89: -4014
A90: Dividends — common and preferred | B90: -899 | C90: -1022 | D90: -1133 | E90: -1243 | F90: -1332 | G90: -1452 | H90: -1638 | I90: -1837
A91: Other financing activities | B91: 218 | C91: -22 | D91: -29 | E91: -84 | F91: -50 | G91: -58 | H91: -136 | I91: -151
A92: Cash provided (used) by financing activities | B92: =+SUM(B85:B91) -> -2790 | C92: -2974 | D92: -2148 | E92: -4835 | F92: -5293 | G92: 2491 | H92: -1459 | I92: =+SUM(I85:I91) -> -4836
A93: Effect of exchange rate changes on cash and equivalents | B93: -83 | C93: -105 | D93: -20 | E93: 45 | F93: -129 | G93: -66 | H93: 143 | I93: -143
A94: Net increase (decrease) in cash and equivalents | B94: =+B76+B83+B92+B93 -> 1632 | C94: -1017 | D94: 670 | E94: 441 | F94: 217 | G94: 3882 | H94: 1541 | I94: =+I76+I83+I92+I93 -> -1315
A95: Cash and equivalents, beginning of year | B95: 2220 | C95: 3852 | D95: 3138 | E95: 3808 | F95: 4259 | G95: 4466 | H95: 8348 | I95: =+H96 -> 9889
A96: CASH AND EQUIVALENTS, END OF YEAR | B96: 3852 | C96: 3138 | D96: 3808 | E96: 4249 | F96: 4466 | G96: 8348 | H96: =+H94+H95 -> 9889 | I96: =+I94+I95 -> 8574
A97: Check (cash at eop - cash in balance sheet) | B97: =+B96-B25 -> 0 | C97: =+C96-C25 -> 0 | D97: 0 | E97: 0 | F97: 0 | G97: 0 | H97: 0 | I97: =+I96-I25 -> 0
A98: Supplemental disclosure of cash flow information:
A99: Cash paid during the year for:
A100: Interest, net of capitalized interest | B100: 53 | C100: 70 | D100: 98 | E100: 125 | F100: 153 | G100: 140 | H100: 293 | I100: 290
A101: Income taxes | B101: 1262 | C101: 748 | D101: 703 | E101: 529 | F101: 757 | G101: 1028 | H101: 1177 | I101: 1231
A102: Non-cash additions to property, plant and equipment | B102: 206 | C102: 252 | D102: 266 | E102: 294 | F102: 160 | G102: 121 | H102: 179 | I102: 160
A103: Dividends declared and not paid | B103: 240 | C103: 271 | D103: 300 | E103: 320 | F103: 347 | G103: 385 | H103: 438 | I103: 480
A105: Segmental Breakdowns
A106: Revenue:
A107: North America | B107: =+SUM(B108:B110) -> 13740 | C107: 14764 | D107: 15216 | E107: 14855 | F107: 15902 | G107: 14484 | H107: 17179 | I107: =+SUM(I108:I110) -> 18353
A108: Footwear | B108: 8506 | C108: 9299 | D108: 9684 | E108: 9322 | F108: 10045 | G108: 9329 | H108: 11644 | I108: 12228
A109: Apparel | B109: 4410 | C109: 4746 | D109: 4886 | E109: 4938 | F109: 5260 | G109: 4639 | H109: 5028 | I109: 5492
A110: Equipment | B110: 824 | C110: 719 | D110: 646 | E110: 595 | F110: 597 | G110: 516 | H110: 507 | I110: 633
A111: Europe, Middle East & Africa | B111: =+SUM(B112:B114) -> 7126 | C111: =+SUM(C112:C114) -> 7315 | D111: =+SUM(D112:D114) -> 7970 | E111: =+SUM(E112:E114) -> 9242 | F111: =+SUM(F112:F114) -> 9812 | G111: =+SUM(G112:G114) -> 9347 | H111: =+SUM(H112:H114) -> 11456 | I111: =+SUM(I112:I114) -> 12479
A112: Footwear | B112: 4703 | C112: 4867 | D112: 5192 | E112: 5875 | F112: 6293 | G112: 5892 | H112: 6970 | I112: 7388
A113: Apparel | B113: 2051 | C113: 2091 | D113: 2395 | E113: 2940 | F113: 3087 | G113: 3053 | H113: 3996 | I113: 4527
A114: Equipment | B114: 372 | C114: 357 | D114: 383 | E114: 427 | F114: 432 | G114: 402 | H114: 490 | I114: 564
A115: Greater China | B115: =+SUM(B116:B118) -> 3067 | C115: =+SUM(C116:C118) -> 3785 | D115: =+SUM(D116:D118) -> 4237 | E115: =+SUM(E116:E118) -> 5134 | F115: =+SUM(F116:F118) -> 6208 | G115: =+SUM(G116:G118) -> 6679 | H115: =+SUM(H116:H118) -> 8290 | I115: =+SUM(I116:I118) -> 7547
A116: Footwear | B116: 2016 | C116: 2599 | D116: 2920 | E116: 3496 | F116: 4262 | G116: 4635 | H116: 5748 | I116: 5416
A117: Apparel | B117: 925 | C117: 1055 | D117: 1188 | E117: 1508 | F117: 1808 | G117: 1896 | H117: 2347 | I117: 1938
A118: Equipment | B118: 126 | C118: 131 | D118: 129 | E118: 130 | F118: 138 | G118: 148 | H118: 195 | I118: 193
A119: Asia Pacific & Latin America | B119: =+SUM(B120:B122) -> 755 | C119: =+SUM(C120:C122) -> 869 | D119: =+SUM(D120:D122) -> 4737 | E119: =+SUM(E120:E122) -> 5166 | F119: =+SUM(F120:F122) -> 5254 | G119: =+SUM(G120:G122) -> 5028 | H119: =+SUM(H120:H122) -> 5343 | I119: =+SUM(I120:I122) -> 5955
A120: Footwear | B120: 452 | C120: 570 | D120: 3285 | E120: 3575 | F120: 3622 | G120: 3449 | H120: 3659 | I120: 4111
A121: Apparel | B121: 230 | C121: 228 | D121: 1185 | E121: 1347 | F121: 1395 | G121: 1365 | H121: 1494 | I121: 1610
A122: Equipment | B122: 73 | C122: 71 | D122: 267 | E122: 244 | F122: 237 | G122: 214 | H122: 190 | I122: 234
A123: Global Brand Divisions | B123: 4013 | C123: 3774 | D123: 73 | E123: 88 | F123: 42 | G123: 30 | H123: 25 | I123: 102
A124: TOTAL NIKE BRAND | B124: =+B107+B111+B115+B119+B123 -> 28701 | C124: 30507 | D124: 32233 | E124: 34485 | F124: 37218 | G124: 35568 | H124: 42293 | I124: 44436
A125: Converse | B125: 1982 | C125: 1955 | D125: 2042 | E125: 1886 | F125: 1906 | G125: 1846 | H125: =+SUM(H126:H129) -> 2205 | I125: =+SUM(I126:I129) -> 2346
A126: Footwear | B126: 0 | C126: 0 | D126: 0 | E126: 1611 | F126: 1658 | G126: 1642 | H126: 1986 | I126: 2094
A127: Apparel | B127: 0 | C127: 0 | D127: 0 | E127: 144 | F127: 118 | G127: 89 | H127: 104 | I127: 103
A128: Equipment | B128: 0 | C128: 0 | D128: 0 | E128: 28 | F128: 24 | G128: 25 | H128: 29 | I128: 26
A129: Other | B129: 0 | C129: 0 | D129: 0 | E129: 103 | F129: 106 | G129: 90 | H129: 86 | I129: 123
A130: Corporate | B130: -82 | C130: -86 | D130: 75 | E130: 26 | F130: -7 | G130: -11 | H130: 40 | I130: -72
A131: TOTAL NIKE, INC. REVENUES | B131: =+B124+B125+B130 -> 30601 | C131: 32376 | D131: 34350 | E131: 36397 | F131: 39117 | G131: 37403 | H131: 44538 | I131: =+I124+I125+I130 -> 46710
A132: Check | B132: =+I131-I2 -> 0 | C132: =+C131-C2 -> 0 | D132: 0 | E132: 0 | F132: 0 | G132: 0 | H132: =+H131-H2 -> 0
A133: EBIT:
A134: North America | B134: 3645 | C134: 3763 | D134: 3875 | E134: 3600 | F134: 3925 | G134: 2899 | H134: 5089 | I134: 5114
A135: Europe, Middle East & Africa | B135: 1275 | C135: 1787 | D135: 1507 | E135: 1587 | F135: 1995 | G135: 1541 | H135: 2435 | I135: 3293
A136: Greater China | B136: 249 | C136: 1372 | D136: 1507 | E136: 1807 | F136: 2376 | G136: 2490 | H136: 3243 | I136: 2365
A137: Asia Pacific & Latin America | B137: 993 | C137: 1002 | D137: 980 | E137: 1189 | F137: 1323 | G137: 1184 | H137: 1530 | I137: 1896
A138: Global Brand Divisions | B138: -1349 | C138: -2596 | D138: -2677 | E138: -2658 | F138: -3262 | G138: -3468 | H138: -3656 | I138: -4262
A139: TOTAL NIKE BRAND | B139: =+SUM(B134:B138) -> 4813 | C139: 5328 | D139: 5192 | E139: 5525 | F139: 6357 | G139: 4646 | H139: 8641 | I139: 8406
A140: Converse | B140: 517 | C140: 487 | D140: 477 | E140: 310 | F140: 303 | G140: 297 | H140: 543 | I140: 669
A141: Corporate | B141: -1097 | C141: -1173 | D141: -724 | E141: -1456 | F141: -1810 | G141: -1967 | H141: -2261 | I141: -2219
A142: TOTAL NIKE, INC. EBIT | B142: =+SUM(B139:B141) -> 4233 | C142: =+SUM(C139:C141) -> 4642 | D142: =+SUM(D139:D141) -> 4945 | E142: =+SUM(E139:E141) -> 4379 | F142: =+SUM(F139:F141) -> 4850 | G142: =+SUM(G139:G141) -> 2976 | H142: =+SUM(H139:H141) -> 6923 | I142: =+SUM(I139:I141) -> 6856
A143: Check | B143: =+B142-B10-B8 -> 0 | C143: =+C142-C10-C8 -> 0 | D143: 0 | E143: 0 | F143: 0 | G143: 0 | H143: 0 | I143: =+I142-I10-I8 -> 0
A144: PROPERTY, PLANT AND EQUIPMENT, NET
A145: North America | B145: 632 | C145: 742 | D145: 819 | E145: 848 | F145: 814 | G145: 645 | H145: 617 | I145: 639
A146: Europe, Middle East & Africa | B146: 498 | C146: 639 | D146: 706 | E146: 849 | F146: 929 | G146: 885 | H146: 982 | I146: 920
A147: Greater China | B147: 254 | C147: 234 | D147: 225 | E147: 256 | F147: 237 | G147: 214 | H147: 288 | I147: 303
A148: Asia Pacific & Latin America(1) | B148: 205 | C148: 223 | D148: 223 | E148: 339 | F148: 326 | G148: 296 | H148: 304 | I148: 274
A149: Global Brand Divisions | B149: 587 | C149: 620 | D149: 653 | E149: 597 | F149: 665 | G149: 830 | H149: 780 | I149: 789
A150: Total NIKE Brand | B150: =+SUM(B145:B149) -> 2176 | C150: 2458 | D150: 2626 | E150: 2889 | F150: 2971 | G150: 2870 | H150: 2971 | I150: 2925
A151: Converse | B151: 122 | C151: 125 | D151: 125 | E151: 115 | F151: 100 | G151: 80 | H151: 63 | I151: 49
A152: Corporate | B152: 713 | C152: 937 | D152: 1238 | E152: 1450 | F152: 1673 | G152: 1916 | H152: 1870 | I152: 1817
A153: TOTAL PROPERTY, PLANT AND EQUIPMENT, NET | B153: =+SUM(B150:B152) -> 3011 | C153: 3520 | D153: 3989 | E153: 4454 | F153: 4744 | G153: 4866 | H153: 4904 | I153: =+SUM(I150:I152) -> 4791
A154: Check | B154: =+B153-B31 -> 0 | C154: 0 | D154: 0 | E154: 0 | F154: 0 | G154: 0 | H154: 0 | I154: =+I153-I31 -> 0
A155: ADDITIONS TO PROPERTY, PLANT AND EQUIPMENT
A156: North America | B156: 208 | C156: 242 | D156: 223 | E156: 196 | F156: 117 | G156: 196 | H156: 98 | I156: 146
A157: Europe, Middle East & Africa | B157: 236 | C157: 232 | D157: 172 | E157: 240 | F157: 233 | G157: 240 | H157: 153 | I157: 197
A158: Greater China | B158: 69 | C158: 44 | D158: 51 | E158: 76 | F158: 49 | G158: 76 | H158: 94 | I158: 78
A159: Asia Pacific & Latin America(1) | B159: 15 | C159: 13 | D159: 21 | E159: 49 | F159: 47 | G159: 49 | H159: 54 | I159: 56
A160: Global Brand Divisions | B160: 262 | C160: 309 | D160: 317 | E160: 286 | F160: 278 | G160: 286 | H160: 278 | I160: 222
A161: Total NIKE Brand | B161: =+SUM(B156:B160) -> 790 | C161: =+SUM(C156:C160) -> 840 | D161: 784 | E161: 847 | F161: 724 | G161: 847 | H161: 677 | I161: 699
A162: Converse | B162: 101 | C162: 39 | D162: 30 | E162: 22 | F162: 18 | G162: 12 | H162: 7 | I162: 9
A163: Corporate | B163: =-(SUM(B161:B162)+B81) -> 69 | C163: 254 | D163: 278 | E163: 159 | F163: 377 | G163: 227 | H163: 11 | I163: =-(SUM(I161:I162)+I81) -> 50
A164: TOTAL ADDITIONS TO PROPERTY, PLANT AND EQUIPMENT | B164: =+SUM(B161:B163) -> 960 | C164: 1133 | D164: 1092 | E164: 1028 | F164: 1119 | G164: 1086 | H164: 695 | I164: =+SUM(I161:I163) -> 758
A165: Check | B165: =+B164+B81 -> 0 | C165: 0 | D165: 0 | E165: 0 | F165: 0 | G165: 0 | H165: 0 | I165: =+I164+I81 -> 0
A166: DEPRECIATION
A167: North America | B167: 121 | C167: 133 | D167: 140 | E167: 160 | F167: 149 | G167: 148 | H167: 130 | I167: 124
A168: Europe, Middle East & Africa | B168: 87 | C168: 84 | D168: 104 | E168: 116 | F168: 111 | G168: 132 | H168: 136 | I168: 134
A169: Greater China | B169: 46 | C169: 48 | D169: 54 | E169: 56 | F169: 50 | G169: 44 | H169: 46 | I169: 41
A170: Asia Pacific & Latin America | B170: 22 | C170: 18 | D170: 18 | E170: 55 | F170: 53 | G170: 46 | H170: 43 | I170: 42
A171: Global Brand Divisions | B171: 237 | C171: 255 | D171: 271 | E171: 217 | F171: 195 | G171: 214 | H171: 222 | I171: 220
A172: Total NIKE Brand | B172: =+SUM(B167:B171) -> 513 | C172: 538 | D172: 587 | E172: 604 | F172: 558 | G172: 584 | H172: 577 | I172: 561
A173: Converse | B173: 18 | C173: 27 | D173: 28 | E173: 33 | F173: 31 | G173: 25 | H173: 26 | I173: 22
A174: Corporate | B174: 75 | C174: 84 | D174: 91 | E174: 110 | F174: 116 | G174: 112 | H174: 141 | I174: 134
A175: TOTAL DEPRECIATION | B175: =+SUM(B172:B174) -> 606 | C175: 649 | D175: 706 | E175: 747 | F175: 705 | G175: 721 | H175: 744 | I175: =+SUM(I172:I174) -> 717
A176: Check | B176: =+B175-B66 -> 0 | C176: 0 | D176: 0 | E176: 0 | F176: 0 | G176: 0 | H176: 0 | I176: =+I175-I66 -> 0
A177: Revenue Drivers
A178: Organic revenue growth
A179: North America | B179: 0.117 | C179: 0.075 | D179: 0.031 | E179: -0.024 | F179: 0.07 | G179: -0.089 | H179: 0.186 | I179: 0.07
A180: Footwear | B180: 0.135 | C180: 0.093 | D180: 0.041 | E180: -0.037 | F180: 0.078 | G180: -0.071 | H180: 0.248 | I180: 0.05
A181: Apparel | B181: 0.12 | C181: 0.076 | D181: 0.029 | E181: 0.011 | F181: 0.065 | G181: -0.118 | H181: 0.084 | I181: 0.09
A182: Equipment | B182: -0.05 | C182: -0.127 | D182: -0.102 | E182: -0.079 | F182: 0.003 | G182: -0.136 | H182: -0.017 | I182: 0.25
A183: Europe, Middle East & Africa | B183: 0.119 | C183: 0.027 | D183: 0.09 | E183: 0.16 | F183: 0.062 | G183: -0.047 | H183: 0.226 | I183: 0.12
A184: Footwear | B184: 0.158 | C184: 0.035 | D184: 0.067 | E184: 0.132 | F184: 0.071 | G184: -0.064 | H184: 0.183 | I184: 0.09
A185: Apparel | B185: 0.047 | C185: 0.02 | D185: 0.145 | E185: 0.228 | F185: 0.05 | G185: -0.011 | H185: 0.309 | I185: 0.16
A186: Equipment | B186: 0.078 | C186: -0.04 | D186: 0.073 | E186: 0.115 | F186: 0.012 | G186: -0.069 | H186: 0.219 | I186: 0.17
A187: Greater China | B187: 0.179 | C187: 0.234 | D187: 0.119 | E187: 0.212 | F187: 0.209 | G187: 0.076 | H187: 0.241 | I187: -0.13
A188: Footwear | B188: 0.26 | C188: 0.289 | D188: 0.124 | E188: 0.197 | F188: 0.219 | G188: 0.088 | H188: 0.24 | I188: -0.1
A189: Apparel | B189: 0.056 | C189: 0.141 | D189: 0.126 | E189: 0.269 | F189: 0.199 | G189: 0.049 | H189: 0.238 | I189: -0.21
A190: Equipment | B190: 0 | C190: 0.04 | D190: -0.015 | E190: 0.008 | F190: 0.062 | G190: 0.072 | H190: 0.318 | I190: -0.06
A191: Asia Pacific & Latin America | B191: -0.021 | C191: 0.151 | D191: 4.451 | E191: 0.091 | F191: 0.017 | G191: -0.043 | H191: 0.063 | I191: 0.16
A192: Footwear | B192: 0.105 | C192: 0.261 | D192: 4.763 | E192: 0.088 | F192: 0.013 | G192: -0.048 | H192: 0.061 | I192: 0.17
A193: Apparel | B193: -0.167 | C193: -0.009 | D193: 4.197 | E193: 0.137 | F193: 0.036 | G193: -0.022 | H193: 0.095 | I193: 0.12
A194: Equipment | B194: -0.151 | C194: -0.027 | D194: 2.761 | E194: 0.086 | F194: -0.029 | G194: -0.097 | H194: -0.112 | I194: 0.28
A195: Global Brand Divisions | B195: -0.015 | C195: -0.06 | D195: -0.981 | E195: 0.205 | F195: -0.523 | G195: -0.286 | H195: -0.167 | I195: 3.02
A196: TOTAL NIKE BRAND | B196: 0.099 | C196: 0.063 | D196: 0.057 | E196: 0.07 | F196: 0.079 | G196: -0.044 | H196: 0.189 | I196: 0.06
A197: Converse | B197: 0.177 | C197: -0.014 | D197: 0.045 | E197: -0.076 | F197: 0.011 | G197: -0.031 | H197: 0.194 | I197: 0.07
A198: Footwear | B198: 0 | C198: 0 | D198: 0 | E198: 0 | F198: 0.029 | G198: -0.01 | H198: 0.21 | I198: 0.06
A199: Apparel | B199: 0 | C199: 0 | D199: 0 | E199: 0 | F199: -0.181 | G199: -0.246 | H199: 0.169 | I199: -0.03
A200: Equipment | B200: 0 | C200: 0 | D200: 0 | E200: 0 | F200: -0.143 | G200: 0.042 | H200: 0.16 | I200: -0.16
A201: Other | B201: 0 | C201: 0 | D201: 0 | E201: 0 | F201: 0.029 | G201: -0.151 | H201: -0.044 | I201: 0.42
A202: Corporate | B202: 28.333 | C202: -0.049 | D202: 187.2 | E202: -0.653 | F202: 1.269 | G202: 0.571 | H202: -4.636 | I202: 0
A203: TOTAL NIKE, INC. REVENUES | B203: 0.101 | C203: 0.058 | D203: 0.061 | E203: 0.06 | F203: 0.075 | G203: -0.044 | H203: 0.191 | I203: 0.06

Sheet Segmental forecast
A1: NIKE, INC. (Dollars and Shares in Millions Except Per Share Amounts) | B1: =+C1-1 -> 2015 | C1: 2016 | D1: 2017 | E1: 2018 | F1: 2019 | G1: 2020 | H1: =+I1-1 -> 2021 | I1: 2022 | J1: =+I1+1 -> 2023 | K1: =+J1+1 -> 2024 | L1: 2025 | M1: 2026 | N1: 2027
A2: Group Totals
A3: Group Revenue | B3: =SUM(B21,B52,B83,B114,B145,B164,B195) -> 30601 | C3: =SUM(C21,C52,C83,C114,C145,C164,C195) -> 32376 | D3: =SUM(D21,D52,D83,D114,D145,D164,D195) -> 34350 | E3: 36397 | F3: 39117 | G3: 37403 | H3: 44538 | I3: 46710 | J3: =+I3*(1+J4) -> 46710 | K3: =+J3*(1+J4) -> 46710 | L3: 46710 | M3: 46710 | N3: 46710
A4: Growth % | B4: =+IFERROR(B3/A3-1,"nm") -> nm | C4: 0.05800464037 | D4: 0.0609710897 | E4: 0.05959243086 | F4: 0.07473143391 | G4: -0.04381726615 | H4: 0.1907600995 | I4: =+IFERROR(I3/H3-1,"nm") -> 0.04876734474 | J4: 0 | K4: =J4 -> 0 | L4: =K4 -> 0 | M4: 0 | N4: 0
A5: EBITDA | B5: =SUM(B35,B66,B97,B128,B147,B178,B197) -> 4839 | C5: =SUM(C35,C66,C97,C128,C147,C178,C197) -> 5291 | D5: 5651 | E5: 5126 | F5: 5555 | G5: 3697 | H5: 7667 | I5: 7573 | J5: =+I5*(1+J6) -> 7573 | K5: =+J5*(1+J6) -> 7573 | L5: 7573 | M5: 7573 | N5: 7573
A6: Growth % | B6: =+IFERROR(B5/A5-1,"nm") -> nm | C6: 0.09340772887 | D6: =+IFERROR(D5/C5-1,"nm") -> 0.06804006804 | E6: -0.09290391081 | F6: 0.08369098712 | G6: -0.3344734473 | H6: 1.073843657 | I6: =+IFERROR(I5/H5-1,"nm") -> -0.01226033651 | J6: 0 | K6: =J6 -> 0 | L6: =K6 -> 0 | M6: 0 | N6: 0
A7: Margin % | B7: =+IFERROR(B5/B$3,"nm") -> 0.1581320872 | C7: =+IFERROR(C5/C$3,"nm") -> 0.1634235236 | D7: 0.1645123726 | E7: 0.1408357832 | F7: 0.1420098678 | G7: 0.09884233885 | H7: 0.1721451345 | I7: 0.162128024 | J7: =+IFERROR(J5/J$3,"nm") -> 0.162128024 | K7: =+IFERROR(K5/K$3,"nm") -> 0.162128024 | L7: 0.162128024 | M7: 0.162128024 | N7: 0.162128024
A8: D&A | B8: =SUM(B38,B69,B100,B131,B150,B181,B200) -> 606 | C8: =SUM(C38,C69,C100,C131,C150,C181,C200) -> 649 | D8: 706 | E8: 747 | F8: 705 | G8: 721 | H8: 744 | I8: 717 | J8: =+I8*(1+I9) -> 690.9798387 | K8: =+J8*(1+J9) -> 690.9798387 | L8: 690.9798387 | M8: 690.9798387 | N8: 690.9798387
A9: Growth % | B9: =+IFERROR(B8/A8-1,"nm") -> nm | C9: 0.07095709571 | D9: 0.08782742681 | E9: 0.05807365439 | F9: -0.0562248996 | G9: 0.02269503546 | H9: 0.0319001387 | I9: =+IFERROR(I8/H8-1,"nm") -> -0.03629032258 | J9: 0 | K9: =J9 -> 0 | L9: =K9 -> 0 | M9: 0 | N9: 0
A10: As a % of revenue | B10: =+IFERROR(B8/B$3,"nm") -> 0.0198032744 | C10: =+IFERROR(C8/C$3,"nm") -> 0.02004571287 | D10: 0.02055312955 | E10: 0.02052366953 | F10: 0.01802285451 | G10: 0.01927652862 | H10: 0.01670483632 | I10: 0.01535003211 | J10: =+IFERROR(J8/J$3,"nm") -> 0.0147929745 | K10: =+IFERROR(K8/K$3,"nm") -> 0.0147929745 | L10: 0.0147929745 | M10: 0.0147929745 | N10: 0.0147929745
A11: EBIT | B11: =B5-B8 -> 4233 | C11: =C5-C8 -> 4642 | D11: 4945 | E11: 4379 | F11: 4850 | G11: 2976 | H11: 6923 | I11: 6856 | J11: =+I11*(1+J12) -> 6856 | K11: =+J11*(1+K12) -> 6856 | L11: 6856 | M11: 6856 | N11: 6856
A12: Growth % | B12: =+IFERROR(B11/A11-1,"nm") -> nm | C12: 0.09662178124 | D12: 0.06527358897 | E12: -0.1144590495 | F12: 0.1075588034 | G12: -0.3863917526 | H12: 1.326276882 | I12: =+IFERROR(I11/H11-1,"nm") -> -0.00967788531 | J12: 0 | K12: =J12 -> 0 | L12: =K12 -> 0 | M12: 0 | N12: 0
A13: Margin % | B13: =+IFERROR(B11/B$3,"nm") -> 0.1383288128 | C13: =+IFERROR(C11/C$3,"nm") -> 0.1433778107 | D13: 0.1439592431 | E13: 0.1203121136 | F13: 0.1239870133 | G13: 0.07956581023 | H13: 0.1554402982 | I13: 0.1467779919 | J13: =+IFERROR(J11/J$3,"nm") -> 0.1467779919 | K13: 0.1467779919 | L13: 0.1467779919 | M13: 0.1467779919 | N13: 0.1467779919
A14: Capex | B14: =SUM(B45,B76,B107,B138,B157,B188,B207) -> 960 | C14: =SUM(C45,C76,C107,C138,C157,C188,C207) -> 1133 | D14: 1092 | E14: 1028 | F14: 1119 | G14: 1086 | H14: 695 | I14: 758 | J14: =+I14*(1+J15) -> 758 | K14: =+J14*(1+K15) -> 758 | L14: 758 | M14: 758 | N14: 758
A15: Growth % | B15: =+IFERROR(B14/A14-1,"nm") -> nm | C15: 0.1802083333 | D15: -0.03618711386 | E15: -0.05860805861 | F15: 0.08852140078 | G15: -0.02949061662 | H15: -0.3600368324 | I15: =+IFERROR(I14/H14-1,"nm") -> 0.09064748201 | J15: 0 | K15: =J15 -> 0 | L15: 0 | M15: 0 | N15: 0
A16: As a % of revenue | B16: =+IFERROR(B14/B$3,"nm") -> 0.03137152381 | C16: =+IFERROR(C14/C$3,"nm") -> 0.03499505807 | D16: 0.03179039301 | E16: 0.02824408605 | F16: 0.02860648823 | G16: 0.02903510414 | H16: 0.01560465221 | I16: 0.01622778848 | J16: =+IFERROR(J14/J$3,"nm") -> 0.01622778848 | K16: =+IFERROR(K14/K$3,"nm") -> 0.01622778848 | L16: 0.01622778848 | M16: 0.01622778848 | N16: 0.01622778848
A17: Property, plant and equipment | B17: =SUM(B48,B79,B110,B141,B160,B191,B210) -> 3011 | C17: =SUM(C48,C79,C110,C141,C160,C191,C210) -> 3520 | D17: 3989 | E17: 4454 | F17: 4744 | G17: 4866 | H17: 4904 | I17: 4791 | J17: =+I17*(1+J18) -> 4791 | K17: =+J17*(1+K18) -> 4791 | L17: =+K17*(1+L18) -> 4791 | M17: 4791 | N17: 4791
A18: Growth % | B18: =+IFERROR(B17/A17-1,"nm") -> nm | C18: 0.1690468283 | D18: 0.1332386364 | E18: 0.1165705691 | F18: =+IFERROR(F17/E17-1,"nm") -> 0.06511001347 | G18: 0.02571669477 | H18: 0.007809288944 | I18: =+IFERROR(I17/H17-1,"nm") -> -0.02304241436 | J18: 0 | K18: =J18 -> 0 | L18: =K18 -> 0 | M18: 0 | N18: 0
A19: As a % of revenue | B19: =+IFERROR(B17/B$3,"nm") -> 0.09839547727 | C19: =+IFERROR(C17/C$3,"nm") -> 0.1087225105 | D19: 0.1161280932 | E19: 0.122372723 | F19: 0.1212771941 | G19: 0.1300965163 | H19: 0.1101082222 | I19: 0.102569043 | J19: =+IFERROR(J17/J$3,"nm") -> 0.102569043 | K19: 0.102569043 | L19: 0.102569043 | M19: 0.102569043 | N19: 0.102569043
A20: =+Historicals!A107 -> North America
A21: Revenue | B21: =+Historicals!B107 -> 13740 | C21: =+Historicals!C107 -> 14764 | D21: =+Historicals!D107 -> 15216 | E21: =+Historicals!E107 -> 14855 | F21: =+Historicals!F107 -> 15902 | G21: =+Historicals!G107 -> 14484 | H21: =+Historicals!H107 -> 17179 | I21: =+Historicals!I107 -> 18353 | J21: =+I21*(1+J22) -> 18353 | K21: =+J21*(1+K22) -> 18353 | L21: 18353 | M21: 18353 | N21: 18353
A22: Growth % | B22: =+IFERROR(B21/A21-1,"nm") -> nm | C22: 0.07452692868 | D22: 0.03061500948 | E22: -0.02372502629 | F22: 0.07048131942 | G22: -0.08917117344 | H22: 0.1860673847 | I22: =+IFERROR(I21/H21-1,"nm") -> 0.06833925141 | J22: 0 | K22: =J22 -> 0 | L22: =K22 -> 0 | M22: 0 | N22: 0
A23: Footwear | B23: =+Historicals!B108 -> 8506 | C23: =+Historicals!C108 -> 9299 | D23: =+Historicals!D108 -> 9684 | E23: =+Historicals!E108 -> 9322 | F23: =+Historicals!F108 -> 10045 | G23: =+Historicals!G108 -> 9329 | H23: =+Historicals!H108 -> 11644 | I23: =+Historicals!I108 -> 12228 | J23: =+I23*(1+J24) -> 12228 | K23: =+J23*(1+K24) -> 12228 | L23: =+K23*(1+L24) -> 12228 | M23: =+L23*(1+M24) -> 12228 | N23: =+M23*(1+N24) -> 12228
A24: Growth % | B24: =+IFERROR(B23/A23-1,"nm") -> nm | C24: =+IFERROR(C23/B23-1,"nm") -> 0.09322830943 | D24: =+IFERROR(D23/C23-1,"nm") -> 0.04140230132 | E24: =+IFERROR(E23/D23-1,"nm") -> -0.03738124742 | F24: =+IFERROR(F23/E23-1,"nm") -> 0.07755846385 | G24: =+IFERROR(G23/F23-1,"nm") -> -0.0712792434 | H24: =+IFERROR(H23/G23-1,"nm") -> 0.2481509272 | I24: =+IFERROR(I23/H23-1,"nm") -> 0.05015458605 | J24: 0 | K24: =J24 -> 0 | L24: =K24 -> 0 | M24: 0 | N24: 0
A25: Organic growth % | B25: =+Historicals!B180 -> 0.135 | C25: =+Historicals!C180 -> 0.093 | D25: =+Historicals!D180 -> 0.041 | E25: =+Historicals!E180 -> -0.037 | F25: =+Historicals!F180 -> 0.078 | G25: =+Historicals!G180 -> -0.071 | H25: =+Historicals!H180 -> 0.248 | I25: =+Historicals!I180 -> 0.05 | J25: =I25 -> 0.05 | K25: =J25 -> 0.05 | L25: =K25 -> 0.05 | M25: =L25 -> 0.05 | N25: =M25 -> 0.05
A26: Currency impact % | B26: =+IFERROR(B24-B25,"nm") -> nm | C26: 0.0002283094286 | D26: 0.0004023013227 | E26: -0.0003812474184 | F26: -0.000441536151 | G26: -0.0002792434047 | H26: 0.0001509272162 | I26: =+IFERROR(I24-I25,"nm") -> 0.0001545860529 | J26: 0 | K26: =+J26 -> 0 | L26: =+K26 -> 0 | M26: =+L26 -> 0 | N26: =+M26 -> 0
A27: Apparel | B27: =+Historicals!B109 -> 4410 | C27: =+Historicals!C109 -> 4746 | D27: =+Historicals!D109 -> 4886 | E27: =+Historicals!E109 -> 4938 | F27: =+Historicals!F109 -> 5260 | G27: =+Historicals!G109 -> 4639 | H27: =+Historicals!H109 -> 5028 | I27: =+Historicals!I109 -> 5492 | J27: =+I27*(1+J28) -> 5492 | K27: =+J27*(1+K28) -> 5492 | L27: =+K27*(1+L28) -> 5492 | M27: =+L27*(1+M28) -> 5492 | N27: =+M27*(1+N28) -> 5492
A28: Growth % | B28: =+IFERROR(B27/A27-1,"nm") -> nm | C28: =+IFERROR(C27/B27-1,"nm") -> 0.07619047619 | D28: =+IFERROR(D27/C27-1,"nm") -> 0.02949852507 | E28: =+IFERROR(E27/D27-1,"nm") -> 0.01064265248 | F28: =+IFERROR(F27/E27-1,"nm") -> 0.06520858647 | G28: =+IFERROR(G27/F27-1,"nm") -> -0.1180608365 | H28: =+IFERROR(H27/G27-1,"nm") -> 0.08385427894 | I28: =+IFERROR(I27/H27-1,"nm") -> 0.092283214 | J28: =0 -> 0 | K28: =J28 -> 0 | L28: =K28 -> 0 | M28: 0 | N28: 0
A29: Organic growth % | B29: =+Historicals!B184 -> 0.158 | C29: =+Historicals!C184 -> 0.035 | D29: =+Historicals!D184 -> 0.067 | E29: =+Historicals!E184 -> 0.132 | F29: =+Historicals!F184 -> 0.071 | G29: =+Historicals!G184 -> -0.064 | H29: =+Historicals!H184 -> 0.183 | I29: =+Historicals!I184 -> 0.09 | J29: =I29 -> 0.09 | K29: =J29 -> 0.09 | L29: =K29 -> 0.09 | M29: =L29 -> 0.09 | N29: =M29 -> 0.09
A30: Currency impact % | B30: =+IFERROR(B28-B29,"nm") -> nm | C30: =+IFERROR(C28-C29,"nm") -> 0.04119047619 | D30: =+IFERROR(D28-D29,"nm") -> -0.03750147493 | E30: =+IFERROR(E28-E29,"nm") -> -0.1213573475 | F30: =+IFERROR(F28-F29,"nm") -> -0.005791413528 | G30: =+IFERROR(G28-G29,"nm") -> -0.0540608365 | H30: =+IFERROR(H28-H29,"nm") -> -0.09914572106 | I30: =+IFERROR(I28-I29,"nm") -> 0.002283214002 | J30: =J28-J29 -> -0.09 | K30: =+J30 -> -0.09 | L30: =+K30 -> -0.09 | M30: =+L30 -> -0.09 | N30: =+M30 -> -0.09
A31: Equipment | B31: =+Historicals!B110 -> 824 | C31: =+Historicals!C110 -> 719 | D31: =+Historicals!D110 -> 646 | E31: =+Historicals!E110 -> 595 | F31: =+Historicals!F110 -> 597 | G31: =+Historicals!G110 -> 516 | H31: =+Historicals!H110 -> 507 | I31: =+Historicals!I110 -> 633 | J31: =+I31*(1+J32) -> 633 | K31: =+J31*(1+K32) -> 633 | L31: =+K31*(1+L32) -> 633 | M31: =+L31*(1+M32) -> 633 | N31: =+M31*(1+N32) -> 633
A32: Growth % | B32: =+IFERROR(B31/A31-1,"nm") -> nm | C32: =+IFERROR(C31/B31-1,"nm") -> -0.1274271845 | D32: =+IFERROR(D31/C31-1,"nm") -> -0.1015299026 | E32: =+IFERROR(E31/D31-1,"nm") -> -0.07894736842 | F32: =+IFERROR(F31/E31-1,"nm") -> 0.003361344538 | G32: =+IFERROR(G31/F31-1,"nm") -> -0.135678392 | H32: =+IFERROR(H31/G31-1,"nm") -> -0.01744186047 | I32: =+IFERROR(I31/H31-1,"nm") -> 0.2485207101 | J32: 0 | K32: =J32 -> 0 | L32: =K32 -> 0 | M32: 0 | N32: 0
A33: Organic growth % | B33: =+Historicals!B182 -> -0.05 | C33: =+Historicals!C182 -> -0.127 | D33: =+Historicals!D182 -> -0.102 | E33: =+Historicals!E182 -> -0.079 | F33: =+Historicals!F182 -> 0.003 | G33: =+Historicals!G182 -> -0.136 | H33: =+Historicals!H182 -> -0.017 | I33: =+Historicals!I182 -> 0.25 | J33: =I33 -> 0.25 | K33: =J33 -> 0.25 | L33: =K33 -> 0.25 | M33: =L33 -> 0.25 | N33: =M33 -> 0.25
A34: Currency impact % | B34: =+IFERROR(B32-B33,"nm") -> nm | C34: =+IFERROR(C32-C33,"nm") -> -0.000427184466 | D34: =+IFERROR(D32-D33,"nm") -> 0.0004700973574 | E34: =+IFERROR(E32-E33,"nm") -> 5.263157895e-05 | F34: =+IFERROR(F32-F33,"nm") -> 0.0003613445378 | G34: =+IFERROR(G32-G33,"nm") -> 0.0003216080402 | H34: =+IFERROR(H32-H33,"nm") -> -0.0004418604651 | I34: =+IFERROR(I32-I33,"nm") -> -0.001479289941 | J34: =J32-J33 -> -0.25 | K34: =+J34 -> -0.25 | L34: =+K34 -> -0.25 | M34: =+L34 -> -0.25 | N34: =+M34 -> -0.25
A35: EBITDA | B35: =+B42+B38 -> 3766 | C35: =+C42+C38 -> 3896 | D35: 4015 | E35: 3760 | F35: 4074 | G35: 3047 | H35: =+H42+H38 -> 5219 | I35: =+I42+I38 -> 5238 | J35: =+I35*(1+J36) -> 5238 | K35: =+J35*(1+K36) -> 5238 | L35: 5238 | M35: 5238 | N35: 5238
A36: Growth % | B36: =+IFERROR(B35/A35-1,"nm") -> nm | C36: =+IFERROR(C35/B35-1,"nm") -> 0.03451938396 | D36: =+IFERROR(D35/C35-1,"nm") -> 0.03054414784 | E36: =+IFERROR(E35/D35-1,"nm") -> -0.06351183064 | F36: =+IFERROR(F35/E35-1,"nm") -> 0.0835106383 | G36: =+IFERROR(G35/F35-1,"nm") -> -0.2520864016 | H36: =+IFERROR(H35/G35-1,"nm") -> 0.7128322941 | I36: =+IFERROR(I35/H35-1,"nm") -> 0.003640544166 | J36: =0 -> 0 | K36: =J36 -> 0 | L36: =K36 -> 0 | M36: 0 | N36: 0
A37: Margin % | B37: =+IFERROR(B35/B$21,"nm") -> 0.2740902475 | C37: 0.263885126 | D37: 0.2638669821 | E37: 0.2531134298 | F37: 0.2561941894 | G37: 0.2103700635 | H37: 0.3038011526 | I37: =+IFERROR(I35/I$21,"nm") -> 0.2854029314 | J37: =+I37 -> 0.2854029314 | K37: =+J37 -> 0.2854029314 | L37: =+K37 -> 0.2854029314 | M37: =+L37 -> 0.2854029314 | N37: =+M37 -> 0.2854029314
A38: D&A | B38: =+Historicals!B167 -> 121 | C38: =+Historicals!C167 -> 133 | D38: =+Historicals!D167 -> 140 | E38: =+Historicals!E167 -> 160 | F38: =+Historicals!F167 -> 149 | G38: =+Historicals!G167 -> 148 | H38: =+Historicals!H167 -> 130 | I38: =+Historicals!I167 -> 124 | J38: =+I38*(1+J39) -> 124 | K38: =+J38*(1+K39) -> 124 | L38: 124 | M38: 124 | N38: 124
A39: Growth % | B39: =+IFERROR(B38/A38-1,"nm") -> nm | C39: =+IFERROR(C38/B38-1,"nm") -> 0.09917355372 | D39: =+IFERROR(D38/C38-1,"nm") -> 0.05263157895 | E39: =+IFERROR(E38/D38-1,"nm") -> 0.1428571429 | F39: =+IFERROR(F38/E38-1,"nm") -> -0.06875 | G39: =+IFERROR(G38/F38-1,"nm") -> -0.006711409396 | H39: =+IFERROR(H38/G38-1,"nm") -> -0.1216216216 | I39: =+IFERROR(I38/H38-1,"nm") -> -0.04615384615 | J39: 0 | K39: =J39 -> 0 | L39: =K39 -> 0 | M39: =L39 -> 0 | N39: =M39 -> 0
A40: As a % of revenue | B40: =+IFERROR(B38/B$21,"nm") -> 0.008806404658 | C40: 0.009008398808 | D40: 0.00920084122 | E40: 0.01077078425 | F40: 0.00936989058 | G40: 0.01021817178 | H40: 0.007567378776 | I40: =+IFERROR(I38/I$21,"nm") -> 0.006756388601 | J40: =+IFERROR(J38/J$21,"nm") -> 0.006756388601 | K40: 0.006756388601 | L40: 0.006756388601 | M40: 0.006756388601 | N40: 0.006756388601
A41: As a % of PPE | B41: =+IFERROR(B38/B48,"nm") -> 0.1914556962 | C41: 0.179245283 | D41: 0.1709401709 | E41: 0.1886792453 | F41: 0.183046683 | G41: 0.2294573643 | H41: 0.2106969206 | I41: =+IFERROR(I38/I48,"nm") -> 0.1940532081 | J41: =J38/J48 -> 0.1873100465 | K41: =K38/K48 -> 0.1808012032 | L41: 0.1745185359 | M41: 0.1684541852 | N41: 0.1626005649
A42: EBIT | B42: =+Historicals!B134 -> 3645 | C42: =+Historicals!C134 -> 3763 | D42: =+Historicals!D134 -> 3875 | E42: =+Historicals!E134 -> 3600 | F42: =+Historicals!F134 -> 3925 | G42: =+Historicals!G134 -> 2899 | H42: =+Historicals!H134 -> 5089 | I42: =+Historicals!I134 -> 5114 | J42: =+I42*(1+J43) -> 5114 | K42: =+J42*(1+K43) -> 5114 | L42: =+K42*(1+L43) -> 5114 | M42: 5114 | N42: 5114
A43: Growth % | B43: =+IFERROR(B42/A42-1,"nm") -> nm | C43: =+IFERROR(C42/B42-1,"nm") -> 0.03237311385 | D43: =+IFERROR(D42/C42-1,"nm") -> 0.02976348658 | E43: =+IFERROR(E42/D42-1,"nm") -> -0.07096774194 | F43: =+IFERROR(F42/E42-1,"nm") -> 0.09027777778 | G43: =+IFERROR(G42/F42-1,"nm") -> -0.2614012739 | H43: =+IFERROR(H42/G42-1,"nm") -> 0.7554329079 | I43: =+IFERROR(I42/H42-1,"nm") -> 0.004912556494 | J43: 0 | K43: =J43 -> 0 | L43: =K43 -> 0 | M43: 0 | N43: 0
A44: Margin % | B44: =+IFERROR(B42/B$21,"nm") -> 0.2652838428 | C44: 0.2548767272 | D44: 0.2546661409 | E44: 0.2423426456 | F44: 0.2468242988 | G44: 0.2001518917 | H44: 0.2962337738 | I44: =+IFERROR(I42/I$21,"nm") -> 0.2786465428 | J44: =+IFERROR(J42/J$21,"nm") -> 0.2786465428 | K44: 0.2786465428 | L44: 0.2786465428 | M44: 0.2786465428 | N44: 0.2786465428
A45: Capex | B45: =+Historicals!B156 -> 208 | C45: =+Historicals!C156 -> 242 | D45: =+Historicals!D156 -> 223 | E45: =+Historicals!E156 -> 196 | F45: =+Historicals!F156 -> 117 | G45: =+Historicals!G156 -> 196 | H45: =+Historicals!H156 -> 98 | I45: =+Historicals!I156 -> 146 | J45: =+I45*(1+J46) -> 217.54 | K45: =+J45*(1+K46) -> 324.1346 | L45: 482.960554 | M45: 719.6112255 | N45: 1072.220726
A46: Growth % | B46: =+IFERROR(B45/A45-1,"nm") -> nm | C46: =+IFERROR(C45/B45-1,"nm") -> 0.1634615385 | D46: =+IFERROR(D45/C45-1,"nm") -> -0.07851239669 | E46: =+IFERROR(E45/D45-1,"nm") -> -0.1210762332 | F46: =+IFERROR(F45/E45-1,"nm") -> -0.4030612245 | G46: =+IFERROR(G45/F45-1,"nm") -> 0.6752136752 | H46: =+IFERROR(H45/G45-1,"nm") -> -0.5 | I46: =+IFERROR(I45/H45-1,"nm") -> 0.4897959184 | J46: 0.49 | K46: 0.49 | L46: 0.49 | M46: 0.49 | N46: 0.49
A47: As a % of revenue | B47: =+IFERROR(B45/B$21,"nm") -> 0.01513828239 | C47: 0.01639122189 | D47: 0.01465562566 | E47: 0.0131942107 | F47: 0.007357565086 | G47: 0.01353217343 | H47: 0.005704639385 | I47: =+IFERROR(I45/I$21,"nm") -> 0.007955102708 | J47: =J45/J21 -> 0.01185310303 | K47: =K45/K21 -> 0.01766112352 | L47: 0.02631507405 | M47: 0.03920946033 | N47: 0.05842209589
A48: Property, plant and equipment | B48: =+Historicals!B145 -> 632 | C48: =+Historicals!C145 -> 742 | D48: =+Historicals!D145 -> 819 | E48: =+Historicals!E145 -> 848 | F48: =+Historicals!F145 -> 814 | G48: =+Historicals!G145 -> 645 | H48: =+Historicals!H145 -> 617 | I48: =+Historicals!I145 -> 639 | J48: =+I48*(1+J49) -> 662.004 | K48: =+J48*(1+K49) -> 685.836144 | L48: 710.5262452 | M48: 736.10519 | N48: 762.6049769
A49: Growth % | B49: =+IFERROR(B48/A48-1,"nm") -> nm | C49: =+IFERROR(C48/B48-1,"nm") -> 0.1740506329 | D49: =+IFERROR(D48/C48-1,"nm") -> 0.1037735849 | E49: =+IFERROR(E48/D48-1,"nm") -> 0.03540903541 | F49: =+IFERROR(F48/E48-1,"nm") -> -0.04009433962 | G49: =+IFERROR(G48/F48-1,"nm") -> -0.2076167076 | H49: =+IFERROR(H48/G48-1,"nm") -> -0.04341085271 | I49: =+IFERROR(I48/H48-1,"nm") -> 0.03565640194 | J49: 0.036 | K49: 0.036 | L49: 0.036 | M49: 0.036 | N49: 0.036
A50: As a % of revenue | B50: =+IFERROR(B48/B$21,"nm") -> 0.04599708879 | C50: 0.05025738282 | D50: 0.05382492114 | E50: 0.05708515651 | F50: 0.05118852974 | G50: 0.04453189727 | H50: 0.03591594388 | I50: =+IFERROR(I48/I$21,"nm") -> 0.0348171961 | J50: =J48/J21 -> 0.03607061516 | K50: =K48/K21 -> 0.0373691573 | L50: =L48/L21 -> 0.03871444697 | M50: 0.04010816706 | N50: 0.04155206107
A51: EMEA
A52: Revenue | B52: =Historicals!B111 -> 7126 | C52: =Historicals!C111 -> 7315 | D52: =Historicals!D111 -> 7970 | E52: =Historicals!E111 -> 9242 | F52: =Historicals!F111 -> 9812 | G52: =Historicals!G111 -> 9347 | H52: =Historicals!H111 -> 11456 | I52: =Historicals!I111 -> 12479 | J52: =+I52*(1+J53) -> 12479 | K52: =+J52*(1+K53) -> 12479 | L52: 12479 | M52: 12479 | N52: 12479
A53: Growth % | B53: =+IFERROR(B52/A52-1,"nm") -> nm | C53: =+IFERROR(C52/B52-1,"nm") -> 0.02652259332 | D53: =+IFERROR(D52/C52-1,"nm") -> 0.08954203691 | E53: =+IFERROR(E52/D52-1,"nm") -> 0.1595984944 | F53: =+IFERROR(F52/E52-1,"nm") -> 0.06167496213 | G53: =+IFERROR(G52/F52-1,"nm") -> -0.04739094986 | H53: =+IFERROR(H52/G52-1,"nm") -> 0.2256338932 | I53: =+IFERROR(I52/H52-1,"nm") -> 0.08929818436 | J53: 0 | K53: =J53 -> 0 | L53: =K53 -> 0 | M53: 0 | N53: 0
A54: Footwear | B54: =Historicals!B112 -> 4703 | C54: =Historicals!C112 -> 4867 | D54: =Historicals!D112 -> 5192 | E54: =Historicals!E112 -> 5875 | F54: =Historicals!F112 -> 6293 | G54: =Historicals!G112 -> 5892 | H54: =Historicals!H112 -> 6970 | I54: =Historicals!I112 -> 7388 | J54: =+I54*(1+J55) -> 7388 | K54: =+J54*(1+K55) -> 7388 | L54: 7388 | M54: 7388 | N54: 7388
A55: Growth % | B55: =+IFERROR(B54/A54-1,"nm") -> nm | C55: =+IFERROR(C54/B54-1,"nm") -> 0.03487135871 | D55: =+IFERROR(D54/C54-1,"nm") -> 0.0667762482 | E55: =+IFERROR(E54/D54-1,"nm") -> 0.1315485362 | F55: =+IFERROR(F54/E54-1,"nm") -> 0.07114893617 | G55: =+IFERROR(G54/F54-1,"nm") -> -0.06372159542 | H55: =+IFERROR(H54/G54-1,"nm") -> 0.1829599457 | I55: =+IFERROR(I54/H54-1,"nm") -> 0.0599713056 | J55: 0 | K55: =J55 -> 0 | L55: =K55 -> 0 | M55: 0 | N55: 0
A56: Organic growth % | B56: =Historicals!B184 -> 0.158 | C56: =Historicals!C184 -> 0.035 | D56: =Historicals!D184 -> 0.067 | E56: =Historicals!E184 -> 0.132 | F56: =Historicals!F184 -> 0.071 | G56: =Historicals!G184 -> -0.064 | H56: =Historicals!H184 -> 0.183 | I56: =Historicals!I184 -> 0.09 | J56: =I56 -> 0.09 | K56: =J56 -> 0.09 | L56: =K56 -> 0.09 | M56: =L56 -> 0.09 | N56: =M56 -> 0.09
A57: Currency impact % | B57: =B26 -> nm | C57: =C26 -> 0.0002283094286 | D57: 0.0004023013227 | E57: -0.0003812474184 | F57: -0.000441536151 | G57: -0.0002792434047 | H57: 0.0001509272162 | I57: 0.0001545860529 | J57: 0 | K57: =+J57 -> 0 | L57: =+K57 -> 0 | M57: =+L57 -> 0 | N57: =+M57 -> 0
A58: Apparel | B58: =Historicals!B113 -> 2051 | C58: =Historicals!C113 -> 2091 | D58: =Historicals!D113 -> 2395 | E58: =Historicals!E113 -> 2940 | F58: =Historicals!F113 -> 3087 | G58: =Historicals!G113 -> 3053 | H58: =Historicals!H113 -> 3996 | I58: =Historicals!I113 -> 4527 | J58: =+I58*(1+J59) -> 4527 | K58: =+J58*(1+K59) -> 4527 | L58: =+K58*(1+L59) -> 4527 | M58: =+L58*(1+M59) -> 4527 | N58: =+M58*(1+N59) -> 4527
A59: Growth % | B59: =+IFERROR(B58/A58-1,"nm") -> nm | C59: =+IFERROR(C58/B58-1,"nm") -> 0.01950268162 | D59: =+IFERROR(D58/C58-1,"nm") -> 0.1453849833 | E59: =+IFERROR(E58/D58-1,"nm") -> 0.2275574113 | F59: =+IFERROR(F58/E58-1,"nm") -> 0.05 | G59: =+IFERROR(G58/F58-1,"nm") -> -0.01101392938 | H59: =+IFERROR(H58/G58-1,"nm") -> 0.3088765149 | I59: =+IFERROR(I58/H58-1,"nm") -> 0.1328828829 | J59: 0 | K59: =J59 -> 0 | L59: =K59 -> 0 | M59: 0 | N59: 0
A60: Organic growth % | B60: =Historicals!B185 -> 0.047 | C60: =Historicals!C185 -> 0.02 | D60: =Historicals!D185 -> 0.145 | E60: =Historicals!E185 -> 0.228 | F60: =Historicals!F185 -> 0.05 | G60: =Historicals!G185 -> -0.011 | H60: =Historicals!H185 -> 0.309 | I60: =Historicals!I185 -> 0.16 | J60: =I60 -> 0.16 | K60: =J60 -> 0.16 | L60: =K60 -> 0.16 | M60: =L60 -> 0.16 | N60: =M60 -> 0.16
A61: Currency impact % | B61: =+IFERROR(B59-B60,"nm") -> nm | C61: -0.0004973183813 | D61: 0.0003849832616 | E61: -0.0004425887265 | F61: 4.163336342e-17 | G61: -1.392938128e-05 | H61: -0.0001234850966 | I61: -0.02711711712 | J61: =J59-J60 -> -0.16 | K61: =+J61 -> -0.16 | L61: =+K61 -> -0.16 | M61: =+L61 -> -0.16 | N61: =+M61 -> -0.16
A62: Equipment | B62: =Historicals!B114 -> 372 | C62: =Historicals!C114 -> 357 | D62: =Historicals!D114 -> 383 | E62: =Historicals!E114 -> 427 | F62: =Historicals!F114 -> 432 | G62: =Historicals!G114 -> 402 | H62: =Historicals!H114 -> 490 | I62: =Historicals!I114 -> 564 | J62: =+I62*(1+J63) -> 564 | K62: =+J62*(1+K63) -> 564 | L62: =+K62*(1+L63) -> 564 | M62: =+L62*(1+M63) -> 564 | N62: =+M62*(1+N63) -> 564
A63: Growth % | B63: =+IFERROR(B62/A62-1,"nm") -> nm | C63: =+IFERROR(C62/B62-1,"nm") -> -0.04032258065 | D63: =+IFERROR(D62/C62-1,"nm") -> 0.07282913165 | E63: =+IFERROR(E62/D62-1,"nm") -> 0.1148825065 | F63: =+IFERROR(F62/E62-1,"nm") -> 0.01170960187 | G63: =+IFERROR(G62/F62-1,"nm") -> -0.06944444444 | H63: =+IFERROR(H62/G62-1,"nm") -> 0.2189054726 | I63: =+IFERROR(I62/H62-1,"nm") -> 0.1510204082 | J63: 0 | K63: =J63 -> 0 | L63: =K63 -> 0 | M63: =L63 -> 0 | N63: =M63 -> 0
A64: Organic growth % | B64: =Historicals!B186 -> 0.078 | C64: =Historicals!C186 -> -0.04 | D64: =Historicals!D186 -> 0.073 | E64: =Historicals!E186 -> 0.115 | F64: =Historicals!F186 -> 0.012 | G64: =Historicals!G186 -> -0.069 | H64: =Historicals!H186 -> 0.219 | I64: =Historicals!I186 -> 0.17 | J64: =I64 -> 0.17 | K64: =J64 -> 0.17 | L64: 0.17 | M64: 0.17 | N64: 0.17
A65: Currency impact % | B65: =+IFERROR(B63-B64,"nm") -> nm | C65: -0.0003225806452 | D65: -0.0001708683473 | E65: -0.0001174934726 | F65: -0.0002903981265 | G65: -0.0004444444444 | H65: -9.452736318e-05 | I65: -0.01897959184 | J65: =J63-J64 -> -0.17 | K65: =+J65 -> -0.17 | L65: =+K65 -> -0.17 | M65: =+L65 -> -0.17 | N65: =+M65 -> -0.17
A66: EBITDA | B66: =+B69+B73 -> 1362 | C66: =+C69+C73 -> 1871 | D66: 1611 | E66: 1703 | F66: 2106 | G66: 1673 | H66: 2571 | I66: 3427 | J66: =+I66*(1+J67) -> 3427 | K66: =+J66*(1+K67) -> 3427 | L66: 3427 | M66: 3427 | N66: 3427
A67: Growth % | B67: =+IFERROR(B66/A66-1,"nm") -> nm | C67: =+IFERROR(C66/B66-1,"nm") -> 0.3737151248 | D67: =+IFERROR(D66/C66-1,"nm") -> -0.1389631213 | E67: =+IFERROR(E66/D66-1,"nm") -> 0.05710738672 | F67: =+IFERROR(F66/E66-1,"nm") -> 0.2366412214 | G67: =+IFERROR(G66/F66-1,"nm") -> -0.2056030389 | H67: =+IFERROR(H66/G66-1,"nm") -> 0.5367603108 | I67: =+IFERROR(I66/H66-1,"nm") -> 0.3329443796 | J67: 0 | K67: =J67 -> 0 | L67: =K67 -> 0 | M67: =L67 -> 0 | N67: =M67 -> 0
A68: Margin % | B68: =B66/B52 -> 0.1911310693 | C68: =C66/C52 -> 0.2557758031 | D68: 0.2021329987 | E68: 0.1842674746 | F68: 0.2146351406 | G68: 0.1789879106 | H68: 0.2244238827 | I68: 0.2746213639 | J68: =+I68 -> 0.2746213639 | K68: =+J68 -> 0.2746213639 | L68: =+K68 -> 0.2746213639 | M68: =+L68 -> 0.2746213639 | N68: =+M68 -> 0.2746213639
A69: D&A | B69: =Historicals!B168 -> 87 | C69: =Historicals!C168 -> 84 | D69: =Historicals!D168 -> 104 | E69: =Historicals!E168 -> 116 | F69: =Historicals!F168 -> 111 | G69: =Historicals!G168 -> 132 | H69: =Historicals!H168 -> 136 | I69: =Historicals!I168 -> 134 | J69: =+I69*(1+J70) -> 134 | K69: =+J69*(1+K70) -> 134 | L69: 134 | M69: 134 | N69: 134
A70: Growth % | B70: =+IFERROR(B69/A69-1,"nm") -> nm | C70: =+IFERROR(C69/B69-1,"nm") -> -0.03448275862 | D70: =+IFERROR(D69/C69-1,"nm") -> 0.2380952381 | E70: =+IFERROR(E69/D69-1,"nm") -> 0.1153846154 | F70: =+IFERROR(F69/E69-1,"nm") -> -0.04310344828 | G70: =+IFERROR(G69/F69-1,"nm") -> 0.1891891892 | H70: =+IFERROR(H69/G69-1,"nm") -> 0.0303030303 | I70: =+IFERROR(I69/H69-1,"nm") -> -0.01470588235 | J70: 0 | K70: =J70 -> 0 | L70: =K70 -> 0 | M70: =L70 -> 0 | N70: =M70 -> 0
A71: As a % of revenue | B71: =B69/B52 -> 0.0122088128 | C71: =C69/C52 -> 0.01148325359 | D71: 0.0130489335 | E71: 0.0125513958 | F71: 0.01131267835 | G71: 0.01412217824 | H71: 0.01187150838 | I71: 0.01073803991 | J71: =+IFERROR(J69/J$21,"nm") -> 0.00730125865 | K71: 0.00730125865 | L71: 0.00730125865 | M71: 0.00730125865 | N71: 0.00730125865
A72: As a % of PPE | B72: =B69/B79 -> 0.1746987952 | C72: =C69/C79 -> 0.1314553991 | D72: 0.1473087819 | E72: 0.136631331 | F72: 0.1194833154 | G72: 0.1491525424 | H72: 0.1384928717 | I72: 0.1456521739 | J72: =J69/J79 -> 0.1456521739 | K72: =K69/K79 -> 0.1456521739 | L72: 0.1456521739 | M72: 0.1456521739 | N72: 0.1456521739
A73: EBIT | B73: =Historicals!B135 -> 1275 | C73: =Historicals!C135 -> 1787 | D73: =Historicals!D135 -> 1507 | E73: =Historicals!E135 -> 1587 | F73: =Historicals!F135 -> 1995 | G73: =Historicals!G135 -> 1541 | H73: =Historicals!H135 -> 2435 | I73: =Historicals!I135 -> 3293 | J73: =+I73*(1+J74) -> 3293 | K73: =+J73*(1+K74) -> 3293 | L73: 3293 | M73: 3293 | N73: 3293
A74: Growth % | B74: =+IFERROR(B73/A73-1,"nm") -> nm | C74: =+IFERROR(C73/B73-1,"nm") -> 0.4015686275 | D74: =+IFERROR(D73/C73-1,"nm") -> -0.1566871852 | E74: =+IFERROR(E73/D73-1,"nm") -> 0.05308560053 | F74: =+IFERROR(F73/E73-1,"nm") -> 0.2570888469 | G74: =+IFERROR(G73/F73-1,"nm") -> -0.2275689223 | H74: =+IFERROR(H73/G73-1,"nm") -> 0.5801427644 | I74: =+IFERROR(I73/H73-1,"nm") -> 0.3523613963 | J74: 0 | K74: =J74 -> 0 | L74: 0 | M74: 0 | N74: 0
A75: Margin % | B75: =B73/B52 -> 0.1789222565 | C75: =C73/C52 -> 0.2442925496 | D75: 0.1890840652 | E75: 0.1717160788 | F75: 0.2033224623 | G75: 0.1648657323 | H75: 0.2125523743 | I75: 0.263883324 | J75: =+IFERROR(J73/J$21,"nm") -> 0.179425707 | K75: 0.179425707 | L75: 0.179425707 | M75: 0.179425707 | N75: 0.179425707
A76: Capex | B76: =Historicals!B157 -> 236 | C76: =Historicals!C157 -> 232 | D76: =Historicals!D157 -> 172 | E76: =Historicals!E157 -> 240 | F76: =Historicals!F157 -> 233 | G76: =Historicals!G157 -> 240 | H76: =Historicals!H157 -> 153 | I76: =Historicals!I157 -> 197 | J76: =+I76*(1+J77) -> 197 | K76: =+J76*(1+J77) -> 197 | L76: 197 | M76: 197 | N76: 197
A77: Growth % | B77: =+IFERROR(B76/A76-1,"nm") -> nm | C77: =+IFERROR(C76/B76-1,"nm") -> -0.01694915254 | D77: =+IFERROR(D76/C76-1,"nm") -> -0.2586206897 | E77: =+IFERROR(E76/D76-1,"nm") -> 0.3953488372 | F77: =+IFERROR(F76/E76-1,"nm") -> -0.02916666667 | G77: =+IFERROR(G76/F76-1,"nm") -> 0.03004291845 | H77: =+IFERROR(H76/G76-1,"nm") -> -0.3625 | I77: =+IFERROR(I76/H76-1,"nm") -> 0.2875816993 | J77: 0 | K77: =J77 -> 0 | L77: 0 | M77: 0 | N77: 0
A78: As a % of revenue | B78: =B76/B52 -> 0.03311815885 | C78: =C76/C52 -> 0.03171565277 | D78: 0.02158092848 | E78: 0.02596840511 | F78: 0.02374643294 | G78: 0.02567668771 | H78: 0.01335544693 | I78: =I76/I52 -> 0.01578652136 | J78: =J76/J52 -> 0.01578652136 | K78: =K76/K52 -> 0.01578652136 | L78: 0.01578652136 | M78: 0.01578652136 | N78: 0.01578652136
A79: Property, plant and equipment | B79: =Historicals!B146 -> 498 | C79: =Historicals!C146 -> 639 | D79: =Historicals!D146 -> 706 | E79: =Historicals!E146 -> 849 | F79: =Historicals!F146 -> 929 | G79: =Historicals!G146 -> 885 | H79: =Historicals!H146 -> 982 | I79: =Historicals!I146 -> 920 | J79: =+I79*(1+J80) -> 920 | K79: =+J79*(1+K80) -> 920 | L79: 920 | M79: 920 | N79: 920
A80: Growth % | B80: =+IFERROR(B79/A79-1,"nm") -> nm | C80: =+IFERROR(C79/B79-1,"nm") -> 0.2831325301 | D80: =+IFERROR(D79/C79-1,"nm") -> 0.1048513302 | E80: =+IFERROR(E79/D79-1,"nm") -> 0.2025495751 | F80: =+IFERROR(F79/E79-1,"nm") -> 0.09422850412 | G80: =+IFERROR(G79/F79-1,"nm") -> -0.04736275565 | H80: =+IFERROR(H79/G79-1,"nm") -> 0.1096045198 | I80: =+IFERROR(I79/H79-1,"nm") -> -0.06313645621 | J80: 0 | K80: =J80 -> 0 | L80: 0 | M80: 0 | N80: 0
A81: As a % of revenue | B81: =B79/B52 -> 0.06988492843 | C81: =C79/C52 -> 0.08735475051 | D81: 0.08858218319 | E81: 0.09186323307 | F81: 0.09467998369 | G81: 0.09468278592 | H81: 0.08571927374 | I81: 0.07372385608 | J81: =J79/J52 -> 0.07372385608 | K81: =K79/K52 -> 0.07372385608 | L81: =L79/L52 -> 0.07372385608 | M81: 0.07372385608 | N81: 0.07372385608
A82: Greater China
A83: Revenue | B83: =Historicals!B115 -> 3067 | C83: =Historicals!C115 -> 3785 | D83: =Historicals!D115 -> 4237 | E83: =Historicals!E115 -> 5134 | F83: =Historicals!F115 -> 6208 | G83: =Historicals!G115 -> 6679 | H83: =Historicals!H115 -> 8290 | I83: =Historicals!I115 -> 7547 | J83: =+I83*(1+J84) -> 7547 | K83: =+J83*(1+K84) -> 7547 | L83: 7547 | M83: 7547 | N83: 7547
A84: Growth % | B84: =+IFERROR(B83/A83-1,"nm") -> nm | C84: =+IFERROR(C83/B83-1,"nm") -> 0.2341049886 | D84: =+IFERROR(D83/C83-1,"nm") -> 0.1194187583 | E84: =+IFERROR(E83/D83-1,"nm") -> 0.211706396 | F84: =+IFERROR(F83/E83-1,"nm") -> 0.2091936112 | G84: =+IFERROR(G83/F83-1,"nm") -> 0.07586984536 | H84: =+IFERROR(H83/G83-1,"nm") -> 0.241203773 | I84: =+IFERROR(I83/H83-1,"nm") -> -0.08962605549 | J84: 0 | K84: =J84 -> 0 | L84: =K84 -> 0 | M84: =L84 -> 0 | N84: =M84 -> 0
A85: Footwear | B85: =Historicals!B116 -> 2016 | C85: =Historicals!C116 -> 2599 | D85: =Historicals!D116 -> 2920 | E85: =Historicals!E116 -> 3496 | F85: =Historicals!F116 -> 4262 | G85: =Historicals!G116 -> 4635 | H85: =Historicals!H116 -> 5748 | I85: =Historicals!I116 -> 5416 | J85: =+I85*(1+J86) -> 5416 | K85: =+J85*(1+K86) -> 5416 | L85: =+K85*(1+L86) -> 5416 | M85: =+L85*(1+M86) -> 5416 | N85: =+M85*(1+N86) -> 5416
A86: Growth % | B86: =+IFERROR(B85/A85-1,"nm") -> nm | C86: =+IFERROR(C85/B85-1,"nm") -> 0.2891865079 | D86: =+IFERROR(D85/C85-1,"nm") -> 0.1235090419 | E86: =+IFERROR(E85/D85-1,"nm") -> 0.197260274 | F86: =+IFERROR(F85/E85-1,"nm") -> 0.2191075515 | G86: =+IFERROR(G85/F85-1,"nm") -> 0.08751759737 | H86: =+IFERROR(H85/G85-1,"nm") -> 0.2401294498 | I86: =+IFERROR(I85/H85-1,"nm") -> -0.0577592206 | J86: 0 | K86: =J86 -> 0 | L86: =K86 -> 0 | M86: =L86 -> 0 | N86: =M86 -> 0
A87: Organic growth % | B87: =Historicals!B188 -> 0.26 | C87: =Historicals!C188 -> 0.289 | D87: =Historicals!D188 -> 0.124 | E87: =Historicals!E188 -> 0.197 | F87: =Historicals!F188 -> 0.219 | G87: =Historicals!G188 -> 0.088 | H87: =Historicals!H188 -> 0.24 | I87: =Historicals!I188 -> -0.1 | J87: =I87 -> -0.1 | K87: -0.1 | L87: -0.1 | M87: -0.1 | N87: -0.1
A88: Currency impact % | B88: =+IFERROR(B86-B87,"nm") -> nm | C88: 0.0001865079365 | D88: -0.0004909580608 | E88: 0.0002602739726 | F88: 0.0001075514874 | G88: -0.0004824026279 | H88: 0.0001294498382 | I88: 0.0422407794 | J88: 0 | K88: =+J88 -> 0 | L88: =+K88 -> 0 | M88: =+L88 -> 0 | N88: =+M88 -> 0
A89: Apparel | B89: =Historicals!B117 -> 925 | C89: =Historicals!C117 -> 1055 | D89: =Historicals!D117 -> 1188 | E89: =Historicals!E117 -> 1508 | F89: =Historicals!F117 -> 1808 | G89: =Historicals!G117 -> 1896 | H89: =Historicals!H117 -> 2347 | I89: =Historicals!I117 -> 1938 | J89: =+I89*(1+J90) -> 1938 | K89: =+J89*(1+K90) -> 1938 | L89: =+K89*(1+L90) -> 1938 | M89: =+L89*(1+M90) -> 1938 | N89: =+M89*(1+N90) -> 1938
A90: Growth % | B90: =+IFERROR(B89/A89-1,"nm") -> nm | C90: =+IFERROR(C89/B89-1,"nm") -> 0.1405405405 | D90: =+IFERROR(D89/C89-1,"nm") -> 0.1260663507 | E90: =+IFERROR(E89/D89-1,"nm") -> 0.2693602694 | F90: =+IFERROR(F89/E89-1,"nm") -> 0.198938992 | G90: =+IFERROR(G89/F89-1,"nm") -> 0.04867256637 | H90: =+IFERROR(H89/G89-1,"nm") -> 0.2378691983 | I90: =+IFERROR(I89/H89-1,"nm") -> -0.1742650192 | J90: 0 | K90: =J90 -> 0 | L90: =K90 -> 0 | M90: =L90 -> 0 | N90: =M90 -> 0
A91: Organic growth % | B91: =Historicals!B189 -> 0.056 | C91: =Historicals!C189 -> 0.141 | D91: =Historicals!D189 -> 0.126 | E91: =Historicals!E189 -> 0.269 | F91: =Historicals!F189 -> 0.199 | G91: =Historicals!G189 -> 0.049 | H91: =Historicals!H189 -> 0.238 | I91: =Historicals!I189 -> -0.21 | J91: =I91 -> -0.21 | K91: -0.21 | L91: -0.21 | M91: -0.21 | N91: -0.21
A92: Currency impact % | B92: =+IFERROR(B90-B91,"nm") -> nm | C92: -0.0004594594595 | D92: 6.63507109e-05 | E92: 0.0003602693603 | F92: -6.100795756e-05 | G92: -0.0003274336283 | H92: -0.0001308016878 | I92: 0.03573498083 | J92: =J90-J91 -> 0.21 | K92: =+J92 -> 0.21 | L92: =+K92 -> 0.21 | M92: =+L92 -> 0.21 | N92: =+M92 -> 0.21
A93: Equipment | B93: =Historicals!B118 -> 126 | C93: =Historicals!C118 -> 131 | D93: =Historicals!D118 -> 129 | E93: =Historicals!E118 -> 130 | F93: =Historicals!F118 -> 138 | G93: =Historicals!G118 -> 148 | H93: =Historicals!H118 -> 195 | I93: =Historicals!I118 -> 193 | J93: =+I93*(1+J94) -> 193 | K93: =+J93*(1+K94) -> 193 | L93: =+K93*(1+L94) -> 193 | M93: =+L93*(1+M94) -> 193 | N93: =+M93*(1+N94) -> 193
A94: Growth % | B94: =+IFERROR(B93/A93-1,"nm") -> nm | C94: =+IFERROR(C93/B93-1,"nm") -> 0.03968253968 | D94: =+IFERROR(D93/C93-1,"nm") -> -0.01526717557 | E94: =+IFERROR(E93/D93-1,"nm") -> 0.007751937984 | F94: =+IFERROR(F93/E93-1,"nm") -> 0.06153846154 | G94: =+IFERROR(G93/F93-1,"nm") -> 0.07246376812 | H94: =+IFERROR(H93/G93-1,"nm") -> 0.3175675676 | I94: =+IFERROR(I93/H93-1,"nm") -> -0.01025641026 | J94: 0 | K94: =J94 -> 0 | L94: =K94 -> 0 | M94: =L94 -> 0 | N94: =M94 -> 0
A95: Organic growth % | B95: =Historicals!B190 -> 0 | C95: =Historicals!C190 -> 0.04 | D95: =Historicals!D190 -> -0.015 | E95: =Historicals!E190 -> 0.008 | F95: =Historicals!F190 -> 0.062 | G95: =Historicals!G190 -> 0.072 | H95: =Historicals!H190 -> 0.318 | I95: =Historicals!I190 -> -0.06 | J95: =I95 -> -0.06 | K95: -0.06 | L95: -0.06 | M95: -0.06 | N95: -0.06
A96: Currency impact % | B96: =+IFERROR(B94-B95,"nm") -> nm | C96: -0.0003174603175 | D96: -0.0002671755725 | E96: -0.0002480620155 | F96: -0.0004615384615 | G96: 0.0004637681159 | H96: -0.0004324324324 | I96: 0.04974358974 | J96: =J94-J95 -> 0.06 | K96: =+J96 -> 0.06 | L96: =+K96 -> 0.06 | M96: =+L96 -> 0.06 | N96: =+M96 -> 0.06
A97: EBITDA | B97: =B104+B100 -> 295 | C97: =C104+C100 -> 1420 | D97: 1561 | E97: 1863 | F97: 2426 | G97: 2534 | H97: 3289 | I97: 2406 | J97: =+I97*(1+J98) -> 2406 | K97: =+J97*(1+K98) -> 2406 | L97: 2406 | M97: 2406 | N97: 2406
A98: Growth % | B98: =+IFERROR(B97/A97-1,"nm") -> nm | C98: =+IFERROR(C97/B97-1,"nm") -> 3.813559322 | D98: =+IFERROR(D97/C97-1,"nm") -> 0.09929577465 | E98: =+IFERROR(E97/D97-1,"nm") -> 0.1934657271 | F98: =+IFERROR(F97/E97-1,"nm") -> 0.3022007515 | G98: =+IFERROR(G97/F97-1,"nm") -> 0.04451772465 | H98: =+IFERROR(H97/G97-1,"nm") -> 0.2979479084 | I98: =+IFERROR(I97/H97-1,"nm") -> -0.2684706598 | J98: 0 | K98: =J98 -> 0 | L98: =K98 -> 0 | M98: =L98 -> 0 | N98: =M98 -> 0
A99: Margin % | B99: =B97/B83 -> 0.09618519726 | C99: =C97/C83 -> 0.3751651255 | D99: 0.3684210526 | E99: 0.3628749513 | F99: 0.3907860825 | G99: 0.3793981135 | H99: 0.3967430639 | I99: 0.318802173 | J99: =+I99 -> 0.318802173 | K99: =+J99 -> 0.318802173 | L99: =+K99 -> 0.318802173 | M99: =+L99 -> 0.318802173 | N99: =+M99 -> 0.318802173
A100: D&A | B100: =Historicals!B169 -> 46 | C100: =Historicals!C169 -> 48 | D100: =Historicals!D169 -> 54 | E100: =Historicals!E169 -> 56 | F100: =Historicals!F169 -> 50 | G100: =Historicals!G169 -> 44 | H100: =Historicals!H169 -> 46 | I100: =Historicals!I169 -> 41 | J100: =+I100*(1+J101) -> 41 | K100: =+J100*(1+K101) -> 41 | L100: 41 | M100: 41 | N100: 41
A101: Growth % | B101: =+IFERROR(B100/A100-1,"nm") -> nm | C101: =+IFERROR(C100/B100-1,"nm") -> 0.04347826087 | D101: =+IFERROR(D100/C100-1,"nm") -> 0.125 | E101: =+IFERROR(E100/D100-1,"nm") -> 0.03703703704 | F101: =+IFERROR(F100/E100-1,"nm") -> -0.1071428571 | G101: =+IFERROR(G100/F100-1,"nm") -> -0.12 | H101: =+IFERROR(H100/G100-1,"nm") -> 0.04545454545 | I101: =+IFERROR(I100/H100-1,"nm") -> -0.1086956522 | J101: 0 | K101: =J101 -> 0 | L101: =K101 -> 0 | M101: =L101 -> 0 | N101: =M101 -> 0
A102: As a % of revenue | B102: =B100/B83 -> 0.01499836974 | C102: =C100/C83 -> 0.01268163804 | D102: 0.01274486665 | E102: 0.01090767433 | F102: 0.008054123711 | G102: 0.006587812547 | H102: 0.005548854041 | I102: 0.005432622234 | J102: =+IFERROR(J100/J$21,"nm") -> 0.002233967199 | K102: 0.002233967199 | L102: 0.002233967199 | M102: 0.002233967199 | N102: 0.002233967199
A103: As a % of PPE | B103: =B100/B110 -> 0.1811023622 | C103: =C100/C110 -> 0.2051282051 | D103: 0.24 | E103: 0.21875 | F103: 0.2109704641 | G103: 0.2056074766 | H103: 0.1597222222 | I103: 0.1353135314 | J103: =J100/J110 -> 0.1353135314 | K103: =K100/K110 -> 0.1353135314 | L103: 0.1353135314 | M103: 0.1353135314 | N103: 0.1353135314
A104: EBIT | B104: =Historicals!B136 -> 249 | C104: =Historicals!C136 -> 1372 | D104: =Historicals!D136 -> 1507 | E104: =Historicals!E136 -> 1807 | F104: =Historicals!F136 -> 2376 | G104: =Historicals!G136 -> 2490 | H104: =Historicals!H136 -> 3243 | I104: =Historicals!I136 -> 2365 | J104: =+I104*(1+J105) -> 2365 | K104: =+J104*(1+K105) -> 2365 | L104: 2365 | M104: 2365 | N104: 2365
A105: Growth % | B105: =+IFERROR(B104/A104-1,"nm") -> nm | C105: =+IFERROR(C104/B104-1,"nm") -> 4.510040161 | D105: =+IFERROR(D104/C104-1,"nm") -> 0.09839650146 | E105: =+IFERROR(E104/D104-1,"nm") -> 0.199071002 | F105: =+IFERROR(F104/E104-1,"nm") -> 0.3148865523 | G105: =+IFERROR(G104/F104-1,"nm") -> 0.04797979798 | H105: =+IFERROR(H104/G104-1,"nm") -> 0.3024096386 | I105: =+IFERROR(I104/H104-1,"nm") -> -0.2707369719 | J105: 0 | K105: =J105 -> 0 | L105: 0 | M105: 0 | N105: 0
A106: Margin % | B106: =B104/B83 -> 0.08118682752 | C106: =C104/C83 -> 0.3624834875 | D106: 0.355676186 | E106: 0.351967277 | F106: 0.3827319588 | G106: 0.3728103009 | H106: 0.3911942099 | I106: 0.3133695508 | J106: =+IFERROR(J104/J$21,"nm") -> 0.1288617665 | K106: 0.1288617665 | L106: 0.1288617665 | M106: 0.1288617665 | N106: 0.1288617665
A107: Capex | B107: =Historicals!B158 -> 69 | C107: =Historicals!C158 -> 44 | D107: =Historicals!D158 -> 51 | E107: =Historicals!E158 -> 76 | F107: =Historicals!F158 -> 49 | G107: =Historicals!G158 -> 76 | H107: =Historicals!H158 -> 94 | I107: =Historicals!I158 -> 78 | J107: =+I107*(1+J108) -> 78 | K107: =+J107*(1+J108) -> 78 | L107: 78 | M107: 78 | N107: 78
A108: Growth % | B108: =+IFERROR(B107/A107-1,"nm") -> nm | C108: =+IFERROR(C107/B107-1,"nm") -> -0.3623188406 | D108: =+IFERROR(D107/C107-1,"nm") -> 0.1590909091 | E108: =+IFERROR(E107/D107-1,"nm") -> 0.4901960784 | F108: =+IFERROR(F107/E107-1,"nm") -> -0.3552631579 | G108: =+IFERROR(G107/F107-1,"nm") -> 0.5510204082 | H108: =+IFERROR(H107/G107-1,"nm") -> 0.2368421053 | I108: =+IFERROR(I107/H107-1,"nm") -> -0.170212766 | J108: 0 | K108: =+IFERROR(K107/J107-1,"nm") -> 0 | L108: =+IFERROR(L107/K107-1,"nm") -> 0 | M108: =+IFERROR(M107/L107-1,"nm") -> 0 | N108: =+IFERROR(N107/M107-1,"nm") -> 0
A109: As a % of revenue | B109: =B107/B83 -> 0.02249755461 | C109: =C107/C83 -> 0.01162483487 | D109: 0.0120368185 | E109: 0.0148032723 | F109: 0.007893041237 | G109: 0.01137894894 | H109: 0.01133896261 | I109: 0.01033523254 | J109: =J107/J83 -> 0.01033523254 | K109: =K107/K83 -> 0.01033523254 | L109: 0.01033523254 | M109: 0.01033523254 | N109: 0.01033523254
A110: Property, plant and equipment | B110: =Historicals!B147 -> 254 | C110: =Historicals!C147 -> 234 | D110: =Historicals!D147 -> 225 | E110: =Historicals!E147 -> 256 | F110: =Historicals!F147 -> 237 | G110: =Historicals!G147 -> 214 | H110: =Historicals!H147 -> 288 | I110: =Historicals!I147 -> 303 | J110: =+I110*(1+J111) -> 303 | K110: =+J110*(1+K111) -> 303 | L110: 303 | M110: 303 | N110: 303
A111: Growth % | B111: =+IFERROR(B110/A110-1,"nm") -> nm | C111: =+IFERROR(C110/B110-1,"nm") -> -0.07874015748 | D111: =+IFERROR(D110/C110-1,"nm") -> -0.03846153846 | E111: =+IFERROR(E110/D110-1,"nm") -> 0.1377777778 | F111: =+IFERROR(F110/E110-1,"nm") -> -0.07421875 | G111: =+IFERROR(G110/F110-1,"nm") -> -0.0970464135 | H111: =+IFERROR(H110/G110-1,"nm") -> 0.3457943925 | I111: =+IFERROR(I110/H110-1,"nm") -> 0.05208333333 | J111: 0 | K111: =J111 -> 0 | L111: 0 | M111: 0 | N111: 0
A112: As a % of revenue | B112: =B110/B83 -> 0.0828170851 | C112: =C110/C83 -> 0.06182298547 | D112: 0.05310361105 | E112: 0.04986365407 | F112: 0.03817654639 | G112: 0.03204072466 | H112: 0.03474065139 | I112: 0.04014840334 | J112: =J110/J83 -> 0.04014840334 | K112: =K110/K83 -> 0.04014840334 | L112: =L110/L83 -> 0.04014840334 | M112: 0.04014840334 | N112: 0.04014840334
A113: APAC and Latin America
A114: Revenue | B114: =Historicals!B119 -> 755 | C114: =Historicals!C119 -> 869 | D114: =Historicals!D119 -> 4737 | E114: =Historicals!E119 -> 5166 | F114: =Historicals!F119 -> 5254 | G114: =Historicals!G119 -> 5028 | H114: =Historicals!H119 -> 5343 | I114: =Historicals!I119 -> 5955 | J114: =+I114*(1+J115) -> 5955 | K114: =+J114*(1+K115) -> 5955 | L114: 5955 | M114: 5955 | N114: 5955
A115: Growth % | B115: =+IFERROR(B114/A114-1,"nm") -> nm | C115: =+IFERROR(C114/B114-1,"nm") -> 0.1509933775 | D115: =+IFERROR(D114/C114-1,"nm") -> 4.451093211 | E115: =+IFERROR(E114/D114-1,"nm") -> 0.09056364788 | F115: =+IFERROR(F114/E114-1,"nm") -> 0.01703445606 | G115: =+IFERROR(G114/F114-1,"nm") -> -0.04301484583 | H115: =+IFERROR(H114/G114-1,"nm") -> 0.06264916468 | I115: =+IFERROR(I114/H114-1,"nm") -> 0.1145423919 | J115: 0 | K115: =J115 -> 0 | L115: =K115 -> 0 | M115: =L115 -> 0 | N115: =M115 -> 0
A116: Footwear | B116: =Historicals!B120 -> 452 | C116: =Historicals!C120 -> 570 | D116: =Historicals!D120 -> 3285 | E116: =Historicals!E120 -> 3575 | F116: =Historicals!F120 -> 3622 | G116: =Historicals!G120 -> 3449 | H116: =Historicals!H120 -> 3659 | I116: =Historicals!I120 -> 4111 | J116: =+I116*(1+J117) -> 4111 | K116: =+J116*(1+K117) -> 4111 | L116: =+K116*(1+L117) -> 4111 | M116: =+L116*(1+M117) -> 4111 | N116: =+M116*(1+N117) -> 4111
A117: Growth % | B117: =+IFERROR(B116/A116-1,"nm") -> nm | C117: =+IFERROR(C116/B116-1,"nm") -> 0.2610619469 | D117: =+IFERROR(D116/C116-1,"nm") -> 4.763157895 | E117: =+IFERROR(E116/D116-1,"nm") -> 0.08828006088 | F117: =+IFERROR(F116/E116-1,"nm") -> 0.01314685315 | G117: =+IFERROR(G116/F116-1,"nm") -> -0.04776366648 | H117: =+IFERROR(H116/G116-1,"nm") -> 0.06088721369 | I117: =+IFERROR(I116/H116-1,"nm") -> 0.1235310194 | J117: 0 | K117: =J117 -> 0 | L117: =K117 -> 0 | M117: =L117 -> 0 | N117: =M117 -> 0
A118: Organic growth % | B118: =Historicals!B192 -> 0.105 | C118: =Historicals!C192 -> 0.261 | D118: =Historicals!D192 -> 4.763 | E118: =Historicals!E192 -> 0.088 | F118: =Historicals!F192 -> 0.013 | G118: =Historicals!G192 -> -0.048 | H118: =Historicals!H192 -> 0.061 | I118: =Historicals!I192 -> 0.17 | J118: =I118 -> 0.17 | K118: 0.17 | L118: 0.17 | M118: 0.17 | N118: 0.17
A119: Currency impact % | B119: =+IFERROR(B117-B118,"nm") -> nm | C119: 6.194690265e-05 | D119: 0.0001578947368 | E119: 0.0002800608828 | F119: 0.0001468531469 | G119: 0.0002363335174 | H119: -0.0001127863149 | I119: -0.0464689806 | J119: 0 | K119: =+J119 -> 0 | L119: =+K119 -> 0 | M119: =+L119 -> 0 | N119: =+M119 -> 0
A120: Apparel | B120: =Historicals!B121 -> 230 | C120: =Historicals!C121 -> 228 | D120: =Historicals!D121 -> 1185 | E120: =Historicals!E121 -> 1347 | F120: =Historicals!F121 -> 1395 | G120: =Historicals!G121 -> 1365 | H120: =Historicals!H121 -> 1494 | I120: =Historicals!I121 -> 1610 | J120: =+I120*(1+J121) -> 1610 | K120: =+J120*(1+K121) -> 1610 | L120: =+K120*(1+L121) -> 1610 | M120: =+L120*(1+M121) -> 1610 | N120: =+M120*(1+N121) -> 1610
A121: Growth % | B121: =+IFERROR(B120/A120-1,"nm") -> nm | C121: =+IFERROR(C120/B120-1,"nm") -> -0.008695652174 | D121: =+IFERROR(D120/C120-1,"nm") -> 4.197368421 | E121: =+IFERROR(E120/D120-1,"nm") -> 0.1367088608 | F121: =+IFERROR(F120/E120-1,"nm") -> 0.03563474388 | G121: =+IFERROR(G120/F120-1,"nm") -> -0.02150537634 | H121: =+IFERROR(H120/G120-1,"nm") -> 0.09450549451 | I121: =+IFERROR(I120/H120-1,"nm") -> 0.07764390897 | J121: 0 | K121: =J121 -> 0 | L121: =K121 -> 0 | M121: =L121 -> 0 | N121: =M121 -> 0
A122: Organic growth % | B122: =Historicals!B193 -> -0.167 | C122: =Historicals!C193 -> -0.009 | D122: =Historicals!D193 -> 4.197 | E122: =Historicals!E193 -> 0.137 | F122: =Historicals!F193 -> 0.036 | G122: =Historicals!G193 -> -0.022 | H122: =Historicals!H193 -> 0.095 | I122: =Historicals!I193 -> 0.12 | J122: =I122 -> 0.12 | K122: 0.12 | L122: 0.12 | M122: 0.12 | N122: 0.12
A123: Currency impact % | B123: =+IFERROR(B121-B122,"nm") -> nm | C123: 0.0003043478261 | D123: 0.0003684210526 | E123: -0.0002911392405 | F123: -0.0003652561247 | G123: 0.0004946236559 | H123: -0.0004945054945 | I123: -0.04235609103 | J123: =J121-J122 -> -0.12 | K123: =+J123 -> -0.12 | L123: =+K123 -> -0.12 | M123: =+L123 -> -0.12 | N123: =+M123 -> -0.12
A124: Equipment | B124: =Historicals!B122 -> 73 | C124: =Historicals!C122 -> 71 | D124: =Historicals!D122 -> 267 | E124: =Historicals!E122 -> 244 | F124: =Historicals!F122 -> 237 | G124: =Historicals!G122 -> 214 | H124: =Historicals!H122 -> 190 | I124: =Historicals!I122 -> 234 | J124: =+I124*(1+J125) -> 234 | K124: =+J124*(1+K125) -> 234 | L124: =+K124*(1+L125) -> 234 | M124: =+L124*(1+M125) -> 234 | N124: =+M124*(1+N125) -> 234
A125: Growth % | B125: =+IFERROR(B124/A124-1,"nm") -> nm | C125: =+IFERROR(C124/B124-1,"nm") -> -0.02739726027 | D125: =+IFERROR(D124/C124-1,"nm") -> 2.76056338 | E125: =+IFERROR(E124/D124-1,"nm") -> -0.0861423221 | F125: =+IFERROR(F124/E124-1,"nm") -> -0.02868852459 | G125: =+IFERROR(G124/F124-1,"nm") -> -0.0970464135 | H125: =+IFERROR(H124/G124-1,"nm") -> -0.1121495327 | I125: =+IFERROR(I124/H124-1,"nm") -> 0.2315789474 | J125: 0 | K125: =J125 -> 0 | L125: =K125 -> 0 | M125: =L125 -> 0 | N125: =M125 -> 0
A126: Organic growth % | B126: =Historicals!B194 -> -0.151 | C126: =Historicals!C194 -> -0.027 | D126: =Historicals!D194 -> 2.761 | E126: =Historicals!E194 -> 0.086 | F126: =Historicals!F194 -> -0.029 | G126: =Historicals!G194 -> -0.097 | H126: =Historicals!H194 -> -0.112 | I126: =Historicals!I194 -> 0.28 | J126: =I126 -> 0.28 | K126: =J126 -> 0.28 | L126: 0.28 | M126: 0.28 | N126: 0.28
A127: Currency impact % | B127: =+IFERROR(B125-B126,"nm") -> nm | C127: -0.000397260274 | D127: -0.0004366197183 | E127: -0.1721423221 | F127: 0.0003114754098 | G127: -4.641350211e-05 | H127: -0.0001495327103 | I127: -0.04842105263 | J127: =J125-J126 -> -0.28 | K127: =+J127 -> -0.28 | L127: =+K127 -> -0.28 | M127: =+L127 -> -0.28 | N127: =+M127 -> -0.28
A128: EBITDA | B128: =B135+B131 -> 1015 | C128: =C135+C131 -> 1020 | D128: 998 | E128: 1244 | F128: 1376 | G128: 1230 | H128: 1573 | I128: 1938 | J128: =+I128*(1+J129) -> 1938 | K128: =+J128*(1+K129) -> 1938 | L128: 1938 | M128: 1938 | N128: 1938
A129: Growth % | B129: =+IFERROR(B128/A128-1,"nm") -> nm | C129: =+IFERROR(C128/B128-1,"nm") -> 0.004926108374 | D129: =+IFERROR(D128/C128-1,"nm") -> -0.02156862745 | E129: =+IFERROR(E128/D128-1,"nm") -> 0.246492986 | F129: =+IFERROR(F128/E128-1,"nm") -> 0.1061093248 | G129: =+IFERROR(G128/F128-1,"nm") -> -0.1061046512 | H129: =+IFERROR(H128/G128-1,"nm") -> 0.2788617886 | I129: =+IFERROR(I128/H128-1,"nm") -> 0.2320406866 | J129: 0 | K129: =J129 -> 0 | L129: =K129 -> 0 | M129: =L129 -> 0 | N129: =M129 -> 0
A130: Margin % | B130: =B128/B114 -> 1.344370861 | C130: =C128/C114 -> 1.173762946 | D130: 0.2106818662 | E130: 0.2408052652 | F130: 0.2618956985 | G130: 0.2446300716 | H130: 0.2944038929 | I130: 0.325440806 | J130: =+I130 -> 0.325440806 | K130: =+J130 -> 0.325440806 | L130: =+K130 -> 0.325440806 | M130: =+L130 -> 0.325440806 | N130: =+M130 -> 0.325440806
A131: D&A | B131: =Historicals!B170 -> 22 | C131: =Historicals!C170 -> 18 | D131: =Historicals!D170 -> 18 | E131: =Historicals!E170 -> 55 | F131: =Historicals!F170 -> 53 | G131: =Historicals!G170 -> 46 | H131: =Historicals!H170 -> 43 | I131: =Historicals!I170 -> 42 | J131: =+I131*(1+J132) -> 42 | K131: =+J131*(1+K132) -> 42 | L131: 42 | M131: 42 | N131: 42
A132: Growth % | B132: =+IFERROR(B131/A131-1,"nm") -> nm | C132: =+IFERROR(C131/B131-1,"nm") -> -0.1818181818 | D132: =+IFERROR(D131/C131-1,"nm") -> 0 | E132: =+IFERROR(E131/D131-1,"nm") -> 2.055555556 | F132: =+IFERROR(F131/E131-1,"nm") -> -0.03636363636 | G132: =+IFERROR(G131/F131-1,"nm") -> -0.1320754717 | H132: =+IFERROR(H131/G131-1,"nm") -> -0.0652173913 | I132: =+IFERROR(I131/H131-1,"nm") -> -0.02325581395 | J132: 0 | K132: =J132 -> 0 | L132: =K132 -> 0 | M132: =L132 -> 0 | N132: =M132 -> 0
A133: As a % of revenue | B133: =B131/B114 -> 0.02913907285 | C133: =C131/C114 -> 0.02071346375 | D133: 0.003799873338 | E133: 0.01064653504 | F133: 0.01008755234 | G133: 0.009148766905 | H133: 0.008047913157 | I133: 0.007052896725 | J133: =+IFERROR(J131/J$21,"nm") -> 0.002288454204 | K133: 0.002288454204 | L133: 0.002288454204 | M133: 0.002288454204 | N133: 0.002288454204
A134: As a % of PPE | B134: =B131/B141 -> 0.1073170732 | C134: =C131/C141 -> 0.08071748879 | D134: 0.08071748879 | E134: 0.1622418879 | F134: 0.1625766871 | G134: 0.1554054054 | H134: 0.1414473684 | I134: 0.1532846715 | J134: =J131/J141 -> 0.1532846715 | K134: =K131/K141 -> 0.1532846715 | L134: 0.1532846715 | M134: 0.1532846715 | N134: 0.1532846715
A135: EBIT | B135: =Historicals!B137 -> 993 | C135: =Historicals!C137 -> 1002 | D135: =Historicals!D137 -> 980 | E135: =Historicals!E137 -> 1189 | F135: =Historicals!F137 -> 1323 | G135: =Historicals!G137 -> 1184 | H135: =Historicals!H137 -> 1530 | I135: =Historicals!I137 -> 1896 | J135: =+I135*(1+J136) -> 1896 | K135: =+J135*(1+K136) -> 1896 | L135: 1896 | M135: 1896 | N135: 1896
A136: Growth % | B136: =+IFERROR(B135/A135-1,"nm") -> nm | C136: =+IFERROR(C135/B135-1,"nm") -> 0.009063444109 | D136: =+IFERROR(D135/C135-1,"nm") -> -0.02195608782 | E136: =+IFERROR(E135/D135-1,"nm") -> 0.2132653061 | F136: =+IFERROR(F135/E135-1,"nm") -> 0.1126997477 | G136: =+IFERROR(G135/F135-1,"nm") -> -0.1050642479 | H136: =+IFERROR(H135/G135-1,"nm") -> 0.2922297297 | I136: =+IFERROR(I135/H135-1,"nm") -> 0.2392156863 | J136: 0 | K136: =J136 -> 0 | L136: 0 | M136: 0 | N136: 0
A137: Margin % | B137: =B135/B114 -> 1.315231788 | C137: =C135/C114 -> 1.153049482 | D137: 0.2068819928 | E137: 0.2301587302 | F137: 0.2518081462 | G137: 0.2354813047 | H137: 0.2863559798 | I137: 0.3183879093 | J137: =+IFERROR(J135/J$21,"nm") -> 0.1033073612 | K137: 0.1033073612 | L137: 0.1033073612 | M137: 0.1033073612 | N137: 0.1033073612
A138: Capex | B138: =Historicals!B159 -> 15 | C138: =Historicals!C159 -> 13 | D138: =Historicals!D159 -> 21 | E138: =Historicals!E159 -> 49 | F138: =Historicals!F159 -> 47 | G138: =Historicals!G159 -> 49 | H138: =Historicals!H159 -> 54 | I138: =Historicals!I159 -> 56 | J138: =+I138*(1+J139) -> 56 | K138: =+J138*(1+J139) -> 56 | L138: 56 | M138: 56 | N138: 56
A139: Growth % | B139: =+IFERROR(B138/A138-1,"nm") -> nm | C139: =+IFERROR(C138/B138-1,"nm") -> -0.1333333333 | D139: =+IFERROR(D138/C138-1,"nm") -> 0.6153846154 | E139: =+IFERROR(E138/D138-1,"nm") -> 1.333333333 | F139: =+IFERROR(F138/E138-1,"nm") -> -0.04081632653 | G139: =+IFERROR(G138/F138-1,"nm") -> 0.04255319149 | H139: =+IFERROR(H138/G138-1,"nm") -> 0.1020408163 | I139: =+IFERROR(I138/H138-1,"nm") -> 0.03703703704 | J139: 0 | K139: =J139 -> 0 | L139: 0 | M139: 0 | N139: 0
A140: As a % of revenue | B140: =B138/B114 -> 0.01986754967 | C140: =C138/C114 -> 0.01495972382 | D140: 0.00443318556 | E140: 0.009485094851 | F140: 0.008945565284 | G140: 0.009745425617 | H140: 0.01010668164 | I140: 0.009403862301 | J140: =J138/J114 -> 0.009403862301 | K140: =K138/K114 -> 0.009403862301 | L140: 0.009403862301 | M140: 0.009403862301 | N140: 0.009403862301
A141: Property, plant and equipment | B141: =Historicals!B148 -> 205 | C141: =Historicals!C148 -> 223 | D141: =Historicals!D148 -> 223 | E141: =Historicals!E148 -> 339 | F141: =Historicals!F148 -> 326 | G141: =Historicals!G148 -> 296 | H141: =Historicals!H148 -> 304 | I141: =Historicals!I148 -> 274 | J141: =+I141*(1+J142) -> 274 | K141: =+J141*(1+K142) -> 274 | L141: 274 | M141: 274 | N141: 274
A142: Growth % | B142: =+IFERROR(B141/A141-1,"nm") -> nm | C142: =+IFERROR(C141/B141-1,"nm") -> 0.08780487805 | D142: =+IFERROR(D141/C141-1,"nm") -> 0 | E142: =+IFERROR(E141/D141-1,"nm") -> 0.5201793722 | F142: =+IFERROR(F141/E141-1,"nm") -> -0.0383480826 | G142: =+IFERROR(G141/F141-1,"nm") -> -0.09202453988 | H142: =+IFERROR(H141/G141-1,"nm") -> 0.02702702703 | I142: =+IFERROR(I141/H141-1,"nm") -> -0.09868421053 | J142: 0 | K142: =J142 -> 0 | L142: 0 | M142: 0 | N142: 0
A143: As a % of revenue | B143: =B141/B114 -> 0.2715231788 | C143: =C141/C114 -> 0.2566168009 | D143: 0.04707620857 | E143: 0.0656213705 | F143: 0.06204796346 | G143: 0.05887032617 | H143: 0.05689687442 | I143: 0.04601175483 | J143: =J141/J114 -> 0.04601175483 | K143: =K141/K114 -> 0.04601175483 | L143: =L141/L114 -> 0.04601175483 | M143: 0.04601175483 | N143: 0.04601175483
A144: Global Brand Divisions
A145: Revenue | B145: =Historicals!B123 -> 4013 | C145: =Historicals!C123 -> 3774 | D145: =Historicals!D123 -> 73 | E145: =Historicals!E123 -> 88 | F145: =Historicals!F123 -> 42 | G145: =Historicals!G123 -> 30 | H145: =Historicals!H123 -> 25 | I145: =Historicals!I123 -> 102 | J145: =+I145*(1+J146) -> 102 | K145: =+J145*(1+K146) -> 102 | L145: 102 | M145: 102 | N145: 102
A146: Growth % | B146: =+IFERROR(B145/A145-1,"nm") -> nm | C146: =+IFERROR(C145/B145-1,"nm") -> -0.05955644156 | D146: =+IFERROR(D145/C145-1,"nm") -> -0.9806571277 | E146: =+IFERROR(E145/D145-1,"nm") -> 0.2054794521 | F146: =+IFERROR(F145/E145-1,"nm") -> -0.5227272727 | G146: =+IFERROR(G145/F145-1,"nm") -> -0.2857142857 | H146: =+IFERROR(H145/G145-1,"nm") -> -0.1666666667 | I146: =+IFERROR(I145/H145-1,"nm") -> 3.08 | J146: 0 | K146: =J146 -> 0 | L146: =K146 -> 0 | M146: =L146 -> 0 | N146: =M146 -> 0
A147: EBITDA | B147: =B150+B154 -> -1112 | C147: =C150+C154 -> -2341 | D147: -2406 | E147: -2441 | F147: -3067 | G147: -3254 | H147: -3434 | I147: -4042 | J147: =+I147*(1-J148) -> -4042 | K147: =+J147*(1-K148) -> -4042 | L147: -4042 | M147: -4042 | N147: -4042
A148: Growth % | B148: =+IFERROR(B147/A147-1,"nm") -> nm | C148: =+IFERROR(C147/B147-1,"nm") -> 1.105215827 | D148: =+IFERROR(D147/C147-1,"nm") -> 0.027765912 | E148: =+IFERROR(E147/D147-1,"nm") -> 0.01454696592 | F148: =+IFERROR(F147/E147-1,"nm") -> 0.2564522737 | G148: =+IFERROR(G147/F147-1,"nm") -> 0.06097163352 | H148: =+IFERROR(H147/G147-1,"nm") -> 0.0553165335 | I148: =+IFERROR(I147/H147-1,"nm") -> 0.1770529994 | J148: 0 | K148: =J148 -> 0 | L148: =K148 -> 0 | M148: =L148 -> 0 | N148: =M148 -> 0
A149: Margin % | B149: =B147/B145 -> -0.2770994269 | C149: =C147/C145 -> -0.6202967674 | D149: -32.95890411 | E149: -27.73863636 | F149: -73.02380952 | G149: -108.4666667 | H149: -137.36 | I149: =I147/I145 -> -39.62745098 | J149: =+I149 -> -39.62745098 | K149: =+J149 -> -39.62745098 | L149: =+K149 -> -39.62745098 | M149: =+L149 -> -39.62745098 | N149: =+M149 -> -39.62745098
A150: D&A | B150: =Historicals!B171 -> 237 | C150: =Historicals!C171 -> 255 | D150: =Historicals!D171 -> 271 | E150: =Historicals!E171 -> 217 | F150: =Historicals!F171 -> 195 | G150: =Historicals!G171 -> 214 | H150: =Historicals!H171 -> 222 | I150: =Historicals!I171 -> 220 | J150: =+I150*(1+J151) -> 220 | K150: =+J150*(1+K151) -> 220 | L150: 220 | M150: 220 | N150: 220
A151: Growth % | B151: =+IFERROR(B150/A150-1,"nm") -> nm | C151: =+IFERROR(C150/B150-1,"nm") -> 0.07594936709 | D151: =+IFERROR(D150/C150-1,"nm") -> 0.06274509804 | E151: =+IFERROR(E150/D150-1,"nm") -> -0.1992619926 | F151: =+IFERROR(F150/E150-1,"nm") -> -0.1013824885 | G151: =+IFERROR(G150/F150-1,"nm") -> 0.09743589744 | H151: =+IFERROR(H150/G150-1,"nm") -> 0.03738317757 | I151: =+IFERROR(I150/H150-1,"nm") -> -0.009009009009 | J151: 0 | K151: =J151 -> 0 | L151: =K151 -> 0 | M151: =L151 -> 0 | N151: =M151 -> 0
A152: As a % of revenue | B152: =B150/B145 -> 0.0590580613 | C152: =C150/C145 -> 0.06756756757 | D152: 3.712328767 | E152: 2.465909091 | F152: 4.642857143 | G152: 7.133333333 | H152: 8.88 | I152: 2.156862745 | J152: =+IFERROR(J150/J$21,"nm") -> 0.01198714107 | K152: 0.01198714107 | L152: 0.01198714107 | M152: 0.01198714107 | N152: 0.01198714107
A153: As a % of PPE | B153: =B150/B160 -> 0.4037478705 | C153: =C150/C160 -> 0.4112903226 | D153: 0.415007657 | E153: 0.3634840871 | F153: 0.2932330827 | G153: 0.2578313253 | H153: 0.2846153846 | I153: 0.278833967 | J153: =J150/J160 -> 0.278833967 | K153: =K150/K160 -> 0.278833967 | L153: 0.278833967 | M153: 0.278833967 | N153: 0.278833967
A154: EBIT | B154: =Historicals!B138 -> -1349 | C154: =Historicals!C138 -> -2596 | D154: =Historicals!D138 -> -2677 | E154: =Historicals!E138 -> -2658 | F154: =Historicals!F138 -> -3262 | G154: =Historicals!G138 -> -3468 | H154: =Historicals!H138 -> -3656 | I154: =Historicals!I138 -> -4262 | J154: =+I154*(1-J155) -> -4262 | K154: =+J154*(1-K155) -> -4262 | L154: -4262 | M154: -4262 | N154: -4262
A155: Growth % | B155: =+IFERROR(B154/A154-1,"nm") -> nm | C155: =+IFERROR(C154/B154-1,"nm") -> 0.9243884359 | D155: =+IFERROR(D154/C154-1,"nm") -> 0.031201849 | E155: =+IFERROR(E154/D154-1,"nm") -> -0.007097497198 | F155: =+IFERROR(F154/E154-1,"nm") -> 0.2272385252 | G155: =+IFERROR(G154/F154-1,"nm") -> 0.06315144083 | H155: =+IFERROR(H154/G154-1,"nm") -> 0.05420991926 | I155: =+IFERROR(I154/H154-1,"nm") -> 0.1657549234 | J155: 0 | K155: =J155 -> 0 | L155: 0 | M155: 0 | N155: 0
A156: Margin % | B156: =+B154/B145 -> -0.3361574882 | C156: =+C154/C145 -> -0.6878643349 | D156: -36.67123288 | E156: -30.20454545 | F156: -77.66666667 | G156: -115.6 | H156: -146.24 | I156: -41.78431373 | J156: =+IFERROR(J154/J$21,"nm") -> -0.2322236147 | K156: -0.2322236147 | L156: -0.2322236147 | M156: -0.2322236147 | N156: -0.2322236147
A157: Capex | B157: =Historicals!B160 -> 262 | C157: =Historicals!C160 -> 309 | D157: =Historicals!D160 -> 317 | E157: =Historicals!E160 -> 286 | F157: =Historicals!F160 -> 278 | G157: =Historicals!G160 -> 286 | H157: =Historicals!H160 -> 278 | I157: =Historicals!I160 -> 222 | J157: =+I157*(1+J158) -> 222 | K157: =+J157*(1+K158) -> 222 | L157: =+K157*(1+L158) -> 222 | M157: =+L157*(1+M158) -> 222 | N157: 222
A158: Growth % | B158: =+IFERROR(B157/A157-1,"nm") -> nm | C158: =+IFERROR(C157/B157-1,"nm") -> 0.179389313 | D158: =+IFERROR(D157/C157-1,"nm") -> 0.02588996764 | E158: =+IFERROR(E157/D157-1,"nm") -> -0.09779179811 | F158: =+IFERROR(F157/E157-1,"nm") -> -0.02797202797 | G158: =+IFERROR(G157/F157-1,"nm") -> 0.02877697842 | H158: =+IFERROR(H157/G157-1,"nm") -> -0.02797202797 | I158: =+IFERROR(I157/H157-1,"nm") -> -0.2014388489 | J158: 0 | K158: =J158 -> 0 | L158: 0 | M158: 0 | N158: 0
A159: As a % of revenue | B159: =B157/B145 -> 0.0652878146 | C159: =C157/C145 -> 0.08187599364 | D159: 4.342465753 | E159: 3.25 | F159: 6.619047619 | G159: 9.533333333 | H159: 11.12 | I159: 2.176470588 | J159: =J157/J145 -> 2.176470588 | K159: =K157/K145 -> 2.176470588 | L159: 2.176470588 | M159: 2.176470588 | N159: 2.176470588
A160: Property, plant and equipment | B160: =Historicals!B149 -> 587 | C160: =Historicals!C149 -> 620 | D160: =Historicals!D149 -> 653 | E160: =Historicals!E149 -> 597 | F160: =Historicals!F149 -> 665 | G160: =Historicals!G149 -> 830 | H160: =Historicals!H149 -> 780 | I160: =Historicals!I149 -> 789 | J160: =+I160*(1+J161) -> 789 | K160: =+J160*(1+K161) -> 789 | L160: 789 | M160: 789 | N160: 789
A161: Growth % | B161: =+IFERROR(B160/A160-1,"nm") -> nm | C161: =+IFERROR(C160/B160-1,"nm") -> 0.05621805792 | D161: 0.05322580645 | E161: -0.08575803982 | F161: 0.1139028476 | G161: 0.2481203008 | H161: -0.06024096386 | I161: 0.01153846154 | J161: 0 | K161: =J161 -> 0 | L161: =K161 -> 0 | M161: 0 | N161: 0
A162: As a % of revenue | B162: =B160/B145 -> 0.1462746075 | C162: =C160/C145 -> 0.164281929 | D162: 8.945205479 | E162: 6.784090909 | F162: 15.83333333 | G162: 27.66666667 | H162: 31.2 | I162: =I160/I145 -> 7.735294118 | J162: =J160/J145 -> 7.735294118 | K162: =K160/K145 -> 7.735294118 | L162: 7.735294118 | M162: 7.735294118 | N162: 7.735294118
A163: Converse
A164: Revenue | B164: =Historicals!B125 -> 1982 | C164: =Historicals!C125 -> 1955 | D164: =Historicals!D125 -> 2042 | E164: =Historicals!E125 -> 1886 | F164: =Historicals!F125 -> 1906 | G164: =Historicals!G125 -> 1846 | H164: =Historicals!H125 -> 2205 | I164: =Historicals!I125 -> 2346 | J164: =+I164*(1+J165) -> 2346 | K164: =+J164*(1+K165) -> 2346 | L164: 2346 | M164: 2346 | N164: 2346
A165: Growth % | B165: =+IFERROR(B164/A164-1,"nm") -> nm | C165: -0.01362260343 | D165: 0.04450127877 | E165: -0.0763956905 | F165: 0.01060445387 | G165: -0.0314795383 | H165: 0.1944745395 | I165: 0.06394557823 | J165: 0 | K165: =J165 -> 0 | L165: =K165 -> 0 | M165: =L165 -> 0 | N165: =M165 -> 0
A166: Footwear | B166: =Historicals!B126 -> 0 | C166: =Historicals!C126 -> 0 | D166: =Historicals!D126 -> 0 | E166: =Historicals!E126 -> 1611 | F166: =Historicals!F126 -> 1658 | G166: =Historicals!G126 -> 1642 | H166: =Historicals!H126 -> 1986 | I166: =Historicals!I126 -> 2094 | J166: =+I166*(1+J167) -> 2094 | K166: =+J166*(1+K167) -> 2094 | L166: =+K166*(1+L167) -> 2094 | M166: =+L166*(1+M167) -> 2094 | N166: =+M166*(1+N167) -> 2094
A167: Growth % | B167: =+IFERROR(B166/A166-1,"nm") -> nm | C167: =+IFERROR(C166/B166-1,"nm") -> nm | D167: =+IFERROR(D166/C166-1,"nm") -> nm | E167: =+IFERROR(E166/D166-1,"nm") -> nm | F167: =+IFERROR(F166/E166-1,"nm") -> 0.02917442582 | G167: =+IFERROR(G166/F166-1,"nm") -> -0.009650180941 | H167: =+IFERROR(H166/G166-1,"nm") -> 0.209500609 | I167: =+IFERROR(I166/H166-1,"nm") -> 0.05438066465 | J167: 0 | K167: =J167 -> 0 | L167: =K167 -> 0 | M167: =L167 -> 0 | N167: =M167 -> 0
A168: Organic growth % | B168: =Historicals!B197 -> 0.177 | C168: =Historicals!C197 -> -0.014 | D168: =Historicals!D197 -> 0.045 | E168: =Historicals!E197 -> -0.076 | F168: =Historicals!F197 -> 0.011 | G168: =Historicals!G197 -> -0.031 | H168: =Historicals!H197 -> 0.194 | I168: =Historicals!I197 -> 0.07 | J168: =I168 -> 0.07 | K168: 0.07 | L168: 0.07 | M168: 0.07 | N168: 0.07
A169: Currency impact % | B169: =+IFERROR(B167-B168,"nm") -> nm | C169: nm | D169: nm | E169: nm | F169: 0.01817442582 | G169: 0.02134981906 | H169: 0.01550060901 | I169: -0.01561933535 | J169: 0 | K169: =+J169 -> 0 | L169: =+K169 -> 0 | M169: =+L169 -> 0 | N169: =+M169 -> 0
A170: Apparel | B170: =Historicals!B127 -> 0 | C170: =Historicals!C127 -> 0 | D170: =Historicals!D127 -> 0 | E170: =Historicals!E127 -> 144 | F170: =Historicals!F127 -> 118 | G170: =Historicals!G127 -> 89 | H170: =Historicals!H127 -> 104 | I170: =Historicals!I127 -> 103 | J170: =+I170*(1+J171) -> 103 | K170: =+J170*(1+K171) -> 103 | L170: =+K170*(1+L171) -> 103 | M170: =+L170*(1+M171) -> 103 | N170: =+M170*(1+N171) -> 103
A171: Growth % | B171: =+IFERROR(B170/A170-1,"nm") -> nm | C171: =+IFERROR(C170/B170-1,"nm") -> nm | D171: =+IFERROR(D170/C170-1,"nm") -> nm | E171: =+IFERROR(E170/D170-1,"nm") -> nm | F171: =+IFERROR(F170/E170-1,"nm") -> -0.1805555556 | G171: =+IFERROR(G170/F170-1,"nm") -> -0.2457627119 | H171: =+IFERROR(H170/G170-1,"nm") -> 0.1685393258 | I171: =+IFERROR(I170/H170-1,"nm") -> -0.009615384615 | J171: 0 | K171: =J171 -> 0 | L171: =K171 -> 0 | M171: =L171 -> 0 | N171: =M171 -> 0
A172: Organic growth % | B172: =Historicals!B199 -> 0 | C172: =Historicals!C199 -> 0 | D172: =Historicals!D199 -> 0 | E172: =Historicals!E199 -> 0 | F172: =Historicals!F199 -> -0.181 | G172: =Historicals!G199 -> -0.246 | H172: =Historicals!H199 -> 0.169 | I172: =Historicals!I199 -> -0.03 | J172: =I172 -> -0.03 | K172: -0.03 | L172: -0.03 | M172: -0.03 | N172: -0.03
A173: Currency impact % | B173: =+IFERROR(B171-B172,"nm") -> nm | C173: nm | D173: =+IFERROR(D171-D172,"nm") -> nm | E173: nm | F173: 0.0004444444444 | G173: 0.0002372881356 | H173: -0.0004606741573 | I173: 0.02038461538 | J173: =J171-J172 -> 0.03 | K173: =+J173 -> 0.03 | L173: =+K173 -> 0.03 | M173: =+L173 -> 0.03 | N173: =+M173 -> 0.03
A174: Equipment | B174: =Historicals!B128 -> 0 | C174: =Historicals!C128 -> 0 | D174: =Historicals!D128 -> 0 | E174: =Historicals!E128 -> 28 | F174: =Historicals!F128 -> 24 | G174: =Historicals!G128 -> 25 | H174: =Historicals!H128 -> 29 | I174: =Historicals!I128 -> 26 | J174: =+I174*(1+J175) -> 26 | K174: =+J174*(1+K175) -> 26 | L174: =+K174*(1+L175) -> 26 | M174: =+L174*(1+M175) -> 26 | N174: =+M174*(1+N175) -> 26
A175: Growth % | B175: =+IFERROR(B174/A174-1,"nm") -> nm | C175: =+IFERROR(C174/B174-1,"nm") -> nm | D175: =+IFERROR(D174/C174-1,"nm") -> nm | E175: =+IFERROR(E174/D174-1,"nm") -> nm | F175: =+IFERROR(F174/E174-1,"nm") -> -0.1428571429 | G175: =+IFERROR(G174/F174-1,"nm") -> 0.04166666667 | H175: =+IFERROR(H174/G174-1,"nm") -> 0.16 | I175: =+IFERROR(I174/H174-1,"nm") -> -0.1034482759 | J175: 0 | K175: =J175 -> 0 | L175: =K175 -> 0 | M175: =L175 -> 0 | N175: =M175 -> 0
A176: Organic growth % | B176: =Historicals!B200 -> 0 | C176: =Historicals!C200 -> 0 | D176: =Historicals!D200 -> 0 | E176: =Historicals!E200 -> 0 | F176: =Historicals!F200 -> -0.143 | G176: =Historicals!G200 -> 0.042 | H176: =Historicals!H200 -> 0.16 | I176: =Historicals!I200 -> -0.16 | J176: =I176 -> -0.16 | K176: -0.16 | L176: -0.16 | M176: -0.16 | N176: -0.16
A177: Currency impact % | B177: =+IFERROR(B175-B176,"nm") -> nm | C177: nm | D177: nm | E177: nm | F177: 0.0001428571429 | G177: -0.0003333333333 | H177: -8.326672685e-17 | I177: 0.05655172414 | J177: =J175-J176 -> 0.16 | K177: =+J177 -> 0.16 | L177: =+K177 -> 0.16 | M177: =+L177 -> 0.16 | N177: =+M177 -> 0.16
A178: EBITDA | B178: =B181+B185 -> 535 | C178: =C181+C185 -> 514 | D178: 505 | E178: 343 | F178: 334 | G178: 322 | H178: 569 | I178: 691 | J178: =+I178*(1+J179) -> 691 | K178: =+J178*(1+K179) -> 691 | L178: 691 | M178: 691 | N178: 691
A179: Growth % | B179: =+IFERROR(B178/A178-1,"nm") -> nm | C179: =+IFERROR(C178/B178-1,"nm") -> -0.03925233645 | D179: =+IFERROR(D178/C178-1,"nm") -> -0.01750972763 | E179: =+IFERROR(E178/D178-1,"nm") -> -0.3207920792 | F179: =+IFERROR(F178/E178-1,"nm") -> -0.02623906706 | G179: =+IFERROR(G178/F178-1,"nm") -> -0.03592814371 | H179: =+IFERROR(H178/G178-1,"nm") -> 0.7670807453 | I179: =+IFERROR(I178/H178-1,"nm") -> 0.2144112478 | J179: 0 | K179: =J179 -> 0 | L179: =K179 -> 0 | M179: =L179 -> 0 | N179: =M179 -> 0
A180: Margin % | B180: =B178/B164 -> 0.2699293643 | C180: =C178/C164 -> 0.262915601 | D180: 0.2473065622 | E180: 0.1818663839 | F180: 0.1752360965 | G180: 0.1744312026 | H180: 0.2580498866 | I180: 0.2945439045 | J180: =+I180 -> 0.2945439045 | K180: =+J180 -> 0.2945439045 | L180: =+K180 -> 0.2945439045 | M180: =+L180 -> 0.2945439045 | N180: =+M180 -> 0.2945439045
A181: D&A | B181: =Historicals!B173 -> 18 | C181: =Historicals!C173 -> 27 | D181: =Historicals!D173 -> 28 | E181: =Historicals!E173 -> 33 | F181: =Historicals!F173 -> 31 | G181: =Historicals!G173 -> 25 | H181: =Historicals!H173 -> 26 | I181: =Historicals!I173 -> 22 | J181: =+I181*(1+J182) -> 22 | K181: =+J181*(1+K182) -> 22 | L181: 22 | M181: 22 | N181: 22
A182: Growth % | B182: =+IFERROR(B181/A181-1,"nm") -> nm | C182: =+IFERROR(C181/B181-1,"nm") -> 0.5 | D182: =+IFERROR(D181/C181-1,"nm") -> 0.03703703704 | E182: =+IFERROR(E181/D181-1,"nm") -> 0.1785714286 | F182: =+IFERROR(F181/E181-1,"nm") -> -0.06060606061 | G182: =+IFERROR(G181/F181-1,"nm") -> -0.1935483871 | H182: =+IFERROR(H181/G181-1,"nm") -> 0.04 | I182: =+IFERROR(I181/H181-1,"nm") -> -0.1538461538 | J182: 0 | K182: =J182 -> 0 | L182: =K182 -> 0 | M182: =L182 -> 0 | N182: =M182 -> 0
A183: As a % of revenue | B183: =B181/B164 -> 0.009081735621 | C183: =C181/C164 -> 0.01381074169 | D183: =D181/D164 -> 0.01371204701 | E183: 0.01749734889 | F183: 0.01626442812 | G183: 0.01354279523 | H183: 0.01179138322 | I183: 0.009377664109 | J183: =+IFERROR(J181/J$21,"nm") -> 0.001198714107 | K183: 0.001198714107 | L183: 0.001198714107 | M183: 0.001198714107 | N183: 0.001198714107
A184: As a % of PPE | B184: =B181/B191 -> 0.1475409836 | C184: =C181/C191 -> 0.216 | D184: 0.224 | E184: 0.2869565217 | F184: 0.31 | G184: 0.3125 | H184: 0.4126984127 | I184: 0.4489795918 | J184: =J181/J191 -> 0.4489795918 | K184: =K181/K191 -> 0.4489795918 | L184: 0.4489795918 | M184: 0.4489795918 | N184: 0.4489795918
A185: EBIT | B185: =Historicals!B140 -> 517 | C185: =Historicals!C140 -> 487 | D185: =Historicals!D140 -> 477 | E185: =Historicals!E140 -> 310 | F185: =Historicals!F140 -> 303 | G185: =Historicals!G140 -> 297 | H185: =Historicals!H140 -> 543 | I185: =Historicals!I140 -> 669 | J185: =+I185*(1+J186) -> 669 | K185: =+J185*(1+K186) -> 669 | L185: 669 | M185: 669 | N185: 669
A186: Growth % | B186: =+IFERROR(B185/A185-1,"nm") -> nm | C186: =+IFERROR(C185/B185-1,"nm") -> -0.0580270793 | D186: =+IFERROR(D185/C185-1,"nm") -> -0.0205338809 | E186: =+IFERROR(E185/D185-1,"nm") -> -0.3501048218 | F186: =+IFERROR(F185/E185-1,"nm") -> -0.02258064516 | G186: =+IFERROR(G185/F185-1,"nm") -> -0.0198019802 | H186: =+IFERROR(H185/G185-1,"nm") -> 0.8282828283 | I186: =+IFERROR(I185/H185-1,"nm") -> 0.2320441989 | J186: 0 | K186: =J186 -> 0 | L186: 0 | M186: 0 | N186: 0
A187: Margin % | B187: =B185/B164 -> 0.2608476287 | C187: =C185/C164 -> 0.2491048593 | D187: 0.2335945152 | E187: 0.164369035 | F187: 0.1589716684 | G187: 0.1608884074 | H187: 0.2462585034 | I187: 0.2851662404 | J187: =+IFERROR(J185/J$21,"nm") -> 0.03645180624 | K187: 0.03645180624 | L187: 0.03645180624 | M187: 0.03645180624 | N187: 0.03645180624
A188: Capex | B188: =Historicals!B162 -> 101 | C188: =Historicals!C162 -> 39 | D188: =Historicals!D162 -> 30 | E188: =Historicals!E162 -> 22 | F188: =Historicals!F162 -> 18 | G188: =Historicals!G162 -> 12 | H188: =Historicals!H162 -> 7 | I188: =Historicals!I162 -> 9 | J188: =+I188*(1+J189) -> 9 | K188: =+J188*(1+K189) -> 9 | L188: 9 | M188: 9 | N188: 9
A189: Growth % | B189: =+IFERROR(B188/A188-1,"nm") -> nm | C189: =+IFERROR(C188/B188-1,"nm") -> -0.6138613861 | D189: =+IFERROR(D188/C188-1,"nm") -> -0.2307692308 | E189: =+IFERROR(E188/D188-1,"nm") -> -0.2666666667 | F189: =+IFERROR(F188/E188-1,"nm") -> -0.1818181818 | G189: =+IFERROR(G188/F188-1,"nm") -> -0.3333333333 | H189: =+IFERROR(H188/G188-1,"nm") -> -0.4166666667 | I189: =+IFERROR(I188/H188-1,"nm") -> 0.2857142857 | J189: 0 | K189: =J189 -> 0 | L189: 0 | M189: 0 | N189: 0
A190: As a % of revenue | B190: =B188/B164 -> 0.05095862765 | C190: =C188/C164 -> 0.0199488491 | D190: 0.01469147894 | E190: 0.01166489926 | F190: 0.00944386149 | G190: 0.006500541712 | H190: 0.003174603175 | I190: 0.003836317136 | J190: =J188/J164 -> 0.003836317136 | K190: =K188/K164 -> 0.003836317136 | L190: 0.003836317136 | M190: 0.003836317136 | N190: 0.003836317136
A191: Property, plant and equipment | B191: =Historicals!B151 -> 122 | C191: =Historicals!C151 -> 125 | D191: =Historicals!D151 -> 125 | E191: =Historicals!E151 -> 115 | F191: =Historicals!F151 -> 100 | G191: =Historicals!G151 -> 80 | H191: =Historicals!H151 -> 63 | I191: =Historicals!I151 -> 49 | J191: =+I191*(1+J192) -> 49 | K191: =+J191*(1+K192) -> 49 | L191: 49 | M191: 49 | N191: 49
A192: Growth % | B192: =+IFERROR(B191/A191-1,"nm") -> nm | C192: =+IFERROR(C191/B191-1,"nm") -> 0.02459016393 | D192: =+IFERROR(D191/C191-1,"nm") -> 0 | E192: =+IFERROR(E191/D191-1,"nm") -> -0.08 | F192: =+IFERROR(F191/E191-1,"nm") -> -0.1304347826 | G192: =+IFERROR(G191/F191-1,"nm") -> -0.2 | H192: =+IFERROR(H191/G191-1,"nm") -> -0.2125 | I192: =+IFERROR(I191/H191-1,"nm") -> -0.2222222222 | J192: 0 | K192: =J192 -> 0 | L192: 0 | M192: 0 | N192: 0
A193: As a % of revenue | B193: =B191/B164 -> 0.06155398587 | C193: =C191/C164 -> 0.06393861893 | D193: 0.06121449559 | E193: 0.06097560976 | F193: 0.05246589717 | G193: 0.04333694475 | H193: 0.02857142857 | I193: 0.02088661552 | J193: =J191/J164 -> 0.02088661552 | K193: =K191/K164 -> 0.02088661552 | L193: =L191/L164 -> 0.02088661552 | M193: 0.02088661552 | N193: 0.02088661552
A194: Corporate
A195: Revenue | B195: =Historicals!B130 -> -82 | C195: =Historicals!C130 -> -86 | D195: =Historicals!D130 -> 75 | E195: =Historicals!E130 -> 26 | F195: =Historicals!F130 -> -7 | G195: =Historicals!G130 -> -11 | H195: =Historicals!H130 -> 40 | I195: =Historicals!I130 -> -72 | J195: =+I195*(1+J196) -> -72 | K195: =+J195*(1+K196) -> -72 | L195: -72 | M195: -72 | N195: -72
A196: Growth % | B196: =+IFERROR(B195/A195-1,"nm") -> nm | C196: =+IFERROR(C195/B195-1,"nm") -> 0.0487804878 | D196: =+IFERROR(D195/C195-1,"nm") -> -1.872093023 | E196: =+IFERROR(E195/D195-1,"nm") -> -0.6533333333 | F196: =+IFERROR(F195/E195-1,"nm") -> -1.269230769 | G196: =+IFERROR(G195/F195-1,"nm") -> 0.5714285714 | H196: =+IFERROR(H195/G195-1,"nm") -> -4.636363636 | I196: =+IFERROR(I195/H195-1,"nm") -> -2.8 | J196: 0 | K196: =J196 -> 0 | L196: 0 | M196: 0 | N196: 0
A197: EBITDA | B197: =B200+B204 -> -1022 | C197: =C200+C204 -> -1089 | D197: -633 | E197: -1346 | F197: -1694 | G197: -1855 | H197: -2120 | I197: -2085 | J197: =+I197*(1-J198) -> -2085 | K197: =+J197*(1-K198) -> -2085 | L197: -2085 | M197: -2085 | N197: -2085
A198: Growth % | B198: =+IFERROR(B197/A197-1,"nm") -> nm | C198: =+IFERROR(C197/B197-1,"nm") -> 0.06555772994 | D198: =+IFERROR(D197/C197-1,"nm") -> -0.4187327824 | E198: =+IFERROR(E197/D197-1,"nm") -> 1.126382306 | F198: =+IFERROR(F197/E197-1,"nm") -> 0.2585438336 | G198: =+IFERROR(G197/F197-1,"nm") -> 0.09504132231 | H198: =+IFERROR(H197/G197-1,"nm") -> 0.1428571429 | I198: =+IFERROR(I197/H197-1,"nm") -> -0.01650943396 | J198: 0 | K198: =J198 -> 0 | L198: 0 | M198: 0 | N198: 0
A199: Margin % | B199: =B197/B195 -> 12.46341463 | C199: =C197/C195 -> 12.6627907 | D199: -8.44 | E199: -51.76923077 | F199: 242 | G199: 168.6363636 | H199: -53 | I199: 28.95833333 | J199: 28.95833333 | K199: 28.95833333 | L199: 28.95833333 | M199: 28.95833333 | N199: 28.95833333
A200: D&A | B200: =Historicals!B174 -> 75 | C200: =Historicals!C174 -> 84 | D200: =Historicals!D174 -> 91 | E200: =Historicals!E174 -> 110 | F200: =Historicals!F174 -> 116 | G200: =Historicals!G174 -> 112 | H200: =Historicals!H174 -> 141 | I200: =Historicals!I174 -> 134 | J200: =+I200*(1+J201) -> 134 | K200: =+J200*(1+K201) -> 134 | L200: 134 | M200: 134 | N200: 134
... 12 more rows
